Organisation Name,Organisation Code,Directorate/Service,Service Category Label,Service Code,Supplier Name,Supplier Reference,Payment Date,Transaction Number,Net Payments,Purpose of Spend
North West Leicestershire District Council,31UH,Street Management,Environment Parks,ENOP,Allstar Business Solutions Ltd,A039425,17/08/2022,1427705,306.83,Petrol
North West Leicestershire District Council,31UH,Housing Repairs,HRA Housing Repairs & Maintenance,HRAHRM,Driscoll Kingston Solicitors,A046789,10/08/2022,1427401,1500.00,Compensation
North West Leicestershire District Council,31UH,Street Management,Environment - Street Scene,ESS,Pod Point Ltd,A045298,10/08/2022,1427404,-10585.25,Contract Payments (Other) Ext
North West Leicestershire District Council,31UH,Property Services,Property Facilities Management,PROPFM,SSE,A047435,10/08/2022,1427406,13529.52,Electricity
North West Leicestershire District Council,31UH,Housing,HRA Housing Management,HRAHM,H M C S,A033868,03/08/2022,1426834,485.00,Legal & Professional Services
North West Leicestershire District Council,31UH,Finance,Financial Planning,FINPLA,Department for Communities & Local Government,A028518,03/08/2022,1426845,2765252.00,Subsidy Receipts and Repayments
North West Leicestershire District Council,31UH,Finance,Financial Planning,FINPLA,Leicestershire County Council,A000950,03/08/2022,1426846,5260161.00,Precept
North West Leicestershire District Council,31UH,Finance,Financial Planning,FINPLA,"Leicester, Leicestershire & Rutland Combined Fire Authority",A028339,03/08/2022,1426847,268708.00,Precept
North West Leicestershire District Council,31UH,Finance,Financial Planning,FINPLA,The Office of the Police and Crime Commissioner for Leicestershire,A007096,03/08/2022,1426848,934812.29,Precept
North West Leicestershire District Council,31UH,Finance,Financial Planning,FINPLA,Leicestershire County Council,A000950,03/08/2022,1426849,2010430.00,Precept
North West Leicestershire District Council,31UH,Communications,Corporate - Customer Services,CS,Quadient UK Ltd,A000079,31/08/2022,1428114,1178.76,Civic Events - Remembrance Day
North West Leicestershire District Council,31UH,Leisure & Culture,Cultural Services Arts & Events,CULTEV,Filmbank Distribution Limited,A047605,31/08/2022,1428118,5617.17,Special Events
North West Leicestershire District Council,31UH,Finance,Exchequer Services,EXCH,Click Travel Ltd,A044308,31/08/2022,1428120,3239.87,Accomodation and Travel
North West Leicestershire District Council,31UH,Finance,Exchequer Services,EXCH,Comensura Limited,A036958,31/08/2022,1428121,23550.07,Agency Staff
North West Leicestershire District Council,31UH,Information Technology,ICT Services,ICT,De Lage Landen Leasing Limited,A046819,17/08/2022,1427461,294.00,Equipment Operating Leases
North West Leicestershire District Council,31UH,Legal & Democratic,Electoral & Land Charges,LDELC,Sweet & Maxwell Ltd,A001611,17/08/2022,1427484,314.00,Books & Publications
North West Leicestershire District Council,31UH,Housing,HRA Housing Management,HRAHM,Friends of Fairfield,A047580,17/08/2022,1427498,600.00,Grants
North West Leicestershire District Council,31UH,Finance,Exchequer Services,EXCH,Click Travel Ltd,A044308,17/08/2022,1427501,-390.00,Accomodation and Travel
North West Leicestershire District Council,31UH,Finance,Exchequer Services,EXCH,Click Travel Ltd,A044308,17/08/2022,1427502,6357.34,Accomodation and Travel
North West Leicestershire District Council,31UH,Finance,Exchequer Services,EXCH,Comensura Limited,A036958,17/08/2022,1427504,30573.97,Agency Staff
North West Leicestershire District Council,31UH,Housing,HRA Housing Management,HRAHM,Redacted- Personal Data,A046912,17/08/2022,1427581,250.00,Compensation
North West Leicestershire District Council,31UH,Property Services,Property Commercial Lettings,PROPCL,Water Plus Limited,A044043,17/08/2022,1427589,487.18,Water Charges (Metered)
North West Leicestershire District Council,31UH,Housing Repairs,HRA Housing Repairs & Maintenance,HRAHRM,McHale Contracts & Plant Environmental LLP,A046696,17/08/2022,1427615,3047.27,Asbestos Surveys
North West Leicestershire District Council,31UH,Housing Repairs,HRA Housing Repairs & Maintenance,HRAHRM,Dalrod UK Ltd,A046051,17/08/2022,1427618,1991.90,Sewerage & Environmental
North West Leicestershire District Council,31UH,Housing Repairs,HRA Housing Repairs & Maintenance,HRAHRM,Morgan Lambert Limited,A045162,17/08/2022,1427619,399.00,Servicing
North West Leicestershire District Council,31UH,Legal & Democratic,Legal Services,LDLS,Royal Mail Group Plc,A001418,17/08/2022,1427670,1800.00,Postages
North West Leicestershire District Council,31UH,Leisure & Culture,Sport & Physical Activity,SPA,Rainbow BodyArt,A047591,17/08/2022,1427674,330.00,Community Initiatives
North West Leicestershire District Council,31UH,Housing Repairs,HRA Housing Repairs & Maintenance,HRAHRM,Ctrack Ltd,A045628,17/08/2022,1427680,1576.80,Operational Purchases
North West Leicestershire District Council,31UH,Environmental Health,Environmental Health & Licensing,EEHL,Nottingham East Midlands Airport,A029625,17/08/2022,1427700,3193.37,Border Inspection- Partnership working
North West Leicestershire District Council,31UH,Housing,HRA Housing Management,HRAHM,JLA Limited,A043639,10/08/2022,1427160,412.00,Cleaning & Domestic Equipment
North West Leicestershire District Council,31UH,Finance,Exchequer Services,EXCH,Comensura Limited,A036958,10/08/2022,1427161,27178.11,Agency Staff
North West Leicestershire District Council,31UH,Legal & Democratic,Legal Services,LDLS,Bevan Brittan,A031366,10/08/2022,1427165,1800.00,Legal & Professional Services
North West Leicestershire District Council,31UH,Legal & Democratic,Legal Services,LDLS,Browne Jacobson LLP,A042988,10/08/2022,1427166,641.10,Legal & Professional Services
North West Leicestershire District Council,31UH,Housing Repairs,HRA Housing Repairs & Maintenance,HRAHRM,T & S Heating Ltd,A046054,10/08/2022,1427167,4303.23,Responsive Repairs
North West Leicestershire District Council,31UH,Housing Repairs,HRA Housing Repairs & Maintenance,HRAHRM,Dalrod UK Ltd,A046051,10/08/2022,1427181,2579.16,Sewerage & Environmental
North West Leicestershire District Council,31UH,Finance,Revenues,REVS,Browne Jacobson LLP,A042988,10/08/2022,1427182,641.10,Legal & Professional Services
North West Leicestershire District Council,31UH,Housing Repairs,HRA Housing Repairs & Maintenance,HRAHRM,T & S Heating Ltd,A046054,10/08/2022,1427183,2067.36,Responsive Repairs
North West Leicestershire District Council,31UH,Housing,HRA Housing Management,HRAHM,JLA Limited,A043639,10/08/2022,1427184,427.84,Cleaning & Domestic Equipment
North West Leicestershire District Council,31UH,Legal & Democratic,Legal Services,LDLS,Gough Square Chambers,A047384,10/08/2022,1427186,1250.00,Legal & Professional Services
North West Leicestershire District Council,31UH,Housing,HRA Housing Management,HRAHM,JLA Limited,A043639,10/08/2022,1427195,282.00,Cleaning & Domestic Equipment
North West Leicestershire District Council,31UH,Housing Repairs,HRA Housing Repairs & Maintenance,HRAHRM,Redacted- Personal Data,A000133,16/08/2022,1427417,250.00,Compensation
North West Leicestershire District Council,31UH,Finance,Financial Planning,FINPLA,Post Offiice Limited - Payout,A047578,16/08/2022,1427421,20000.00,Energy rebates
North West Leicestershire District Council,31UH,Finance,Financial Planning,FINPLA,Barclays Mercantile Business,A003940,16/08/2022,1427422,92610.51,Negotiable Bonds
North West Leicestershire District Council,31UH,Corporate Director,Human Resources,HR,Fishers Solicitors,A000133,16/08/2022,1427572,2405.00,Purchase of Land
North West Leicestershire District Council,31UH,Finance,Exchequer Services,EXCH,ESPO,A000958,16/08/2022,1427689,7773.24,Gas
North West Leicestershire District Council,31UH,Finance,Exchequer Services,EXCH,H M Land Registry,A000713,16/08/2022,1427690,306.00,Land Registry Searches
North West Leicestershire District Council,31UH,Finance,Exchequer Services,EXCH,Vodafone Limited,A001861,16/08/2022,1427691,609.62,Mobile Telephones
North West Leicestershire District Council,31UH,Finance,Exchequer Services,EXCH,Total Gas & Power,A033385,16/08/2022,1427692,14643.80,Electricity
North West Leicestershire District Council,31UH,Finance,Financial Planning,FINPLA,Post Offiice Limited - Payout,A047578,16/08/2022,1427699,1643999.00,Energy rebates
North West Leicestershire District Council,31UH,Housing,HRA Housing Management,HRAHM,Redacted- Personal Data,A039880,31/08/2022,1427936,650.00,Compensation
North West Leicestershire District Council,31UH,Neighbourhoods & Communities,N & C Neighbourhoods,NACN,CASTLE DONINGTON MUSEUM TRUST,N001096059,31/08/2022,1427940,375.00,Small Grant Scheme
North West Leicestershire District Council,31UH,Neighbourhoods & Communities,N & C Neighbourhoods,NACN,Crawshaw District Guides,A047598,31/08/2022,1427943,500.00,Small Grant Scheme
North West Leicestershire District Council,31UH,Housing,HRA Housing Management,HRAHM,Redacted- Personal Data,A047602,31/08/2022,1428036,250.00,Under Occupancy Incentives
North West Leicestershire District Council,31UH,Housing,HRA Housing Management,HRAHM,Redacted- Personal Data,A047603,31/08/2022,1428037,735.09,Under Occupancy Incentives
North West Leicestershire District Council,31UH,Housing,HRA Housing Management,HRAHM,Redacted- Personal Data,A047603,31/08/2022,1428038,1000.00,Under Occupancy Incentives
North West Leicestershire District Council,31UH,Housing,HRA Housing Management,HRAHM,Redacted- Personal Data,A047604,31/08/2022,1428039,335.62,Under Occupancy Incentives
North West Leicestershire District Council,31UH,Housing,HRA Housing Management,HRAHM,Redacted- Personal Data,A047604,31/08/2022,1428040,1000.00,Under Occupancy Incentives
North West Leicestershire District Council,31UH,Housing,HRA Housing Management,HRAHM,PPG Architectural Coatings Ltd,A000876,31/08/2022,1428042,1712.70,Internal Decorations
North West Leicestershire District Council,31UH,Legal & Democratic,Electoral & Land Charges,LDELC,Royal Mail Group Plc,A001418,24/08/2022,1427737,2933.34,Postages
North West Leicestershire District Council,31UH,Finance,Exchequer Services,EXCH,Comensura Limited,A036958,24/08/2022,1427746,29150.67,Agency Staff
North West Leicestershire District Council,31UH,Finance,Exchequer Services,EXCH,Click Travel Ltd,A044308,24/08/2022,1427747,6476.47,Accomodation and Travel
North West Leicestershire District Council,31UH,Property Services,Property Commercial Lettings,PROPCL,British Gas Business,A035181,24/08/2022,1427766,571.03,General Repairs
North West Leicestershire District Council,31UH,Housing,HRA Housing Management,HRAHM,JLA Limited,A043639,24/08/2022,1427767,282.00,Contract Cleaning
North West Leicestershire District Council,31UH,Communications,Corporate - Customer Services,CS,Quadient UK Ltd,A000079,24/08/2022,1427802,5000.00,Telephone Charge / Rental
North West Leicestershire District Council,31UH,Housing,HRA Housing Management,HRAHM,Leicestershire County Council,A000950,24/08/2022,1427811,305.25,Contract Cleaning
North West Leicestershire District Council,31UH,Housing Repairs,HRA Housing Repairs & Maintenance,HRAHRM,Morgan Lambert Limited,A044192,24/08/2022,1427813,1560.00,Servicing
North West Leicestershire District Council,31UH,Housing Repairs,HRA Housing Repairs & Maintenance,HRAHRM,Morgan Lambert Limited,A044192,24/08/2022,1427815,390.00,Servicing
North West Leicestershire District Council,31UH,Property Services,Property Commercial Lettings,PROPCL,Pozitive Energy,A047015,24/08/2022,1427816,430.07,Gas
North West Leicestershire District Council,31UH,Housing,HRA Housing Management,HRAHM,JLA Limited,A043639,24/08/2022,1427817,442.00,Contract Cleaning
North West Leicestershire District Council,31UH,Housing Repairs,HRA Housing Repairs & Maintenance,HRAHRM,Dalrod UK Ltd,A046051,24/08/2022,1427820,859.55,Sewerage & Environmental
North West Leicestershire District Council,31UH,Housing,HRA Housing Management,HRAHM,JLA Limited,A043639,24/08/2022,1427822,302.00,Contract Cleaning
North West Leicestershire District Council,31UH,Housing Repairs,HRA Housing Repairs & Maintenance,HRAHRM,Sure Maintenance Ltd,A040460,24/08/2022,1427824,705.69,Consultants Fees
North West Leicestershire District Council,31UH,Housing Repairs,HRA Housing Repairs & Maintenance,HRAHRM,Sure Maintenance Ltd,A040460,24/08/2022,1427825,13966.40,Plumbing & Heating
North West Leicestershire District Council,31UH,Property Services,Property Commercial Lettings,PROPCL,British Gas Business,A035181,24/08/2022,1427884,252.85,General Repairs
North West Leicestershire District Council,31UH,Property Services,Property Commercial Lettings,PROPCL,British Gas Business,A035181,24/08/2022,1427886,491.87,General Repairs
North West Leicestershire District Council,31UH,Information Technology,ICT Services,ICT,Virgin Media Business,A035373,10/08/2022,1427199,299.24,Homelessness Strategy
North West Leicestershire District Council,31UH,Information Technology,ICT Services,ICT,EE Ltd (Airtime),A018592,10/08/2022,1427227,1103.50,Mobile Telephones
North West Leicestershire District Council,31UH,Information Technology,ICT Services,ICT,EE Ltd (Airtime),A018592,10/08/2022,1427228,5827.42,Mobile Telephones
North West Leicestershire District Council,31UH,Housing,HRA Performance & Business Support,HRAPBS,Charnwood Borough Council,A000323,10/08/2022,1427249,23118.57,Grants
North West Leicestershire District Council,31UH,Housing Repairs,HRA Housing Repairs & Maintenance,HRAHRM,European Asbestos Services Ltd,A045507,10/08/2022,1427250,7240.45,Asbestos Surveys
North West Leicestershire District Council,31UH,Housing Repairs,HRA Housing Repairs & Maintenance,HRAHRM,Dodd Group (Midlands) Limited,A036692,10/08/2022,1427254,23412.31,Contract Payments (Dws) Ext
North West Leicestershire District Council,31UH,Housing Repairs,HRA Housing Repairs & Maintenance,HRAHRM,Sure Maintenance Ltd,A040460,10/08/2022,1427255,694.76,Plumbing & Heating
North West Leicestershire District Council,31UH,Housing Repairs,HRA Housing Repairs & Maintenance,HRAHRM,Sure Maintenance Ltd,A040460,10/08/2022,1427256,19076.74,Plumbing & Heating
North West Leicestershire District Council,31UH,Housing Repairs,HRA Housing Repairs & Maintenance,HRAHRM,Sure Maintenance Ltd,A040460,10/08/2022,1427257,2877.47,Plumbing & Heating
North West Leicestershire District Council,31UH,Finance,Exchequer Services,EXCH,Click Travel Ltd,A044308,10/08/2022,1427266,6546.73,Accomodation and Travel
North West Leicestershire District Council,31UH,Housing Repairs,HRA Housing Repairs & Maintenance,HRAHRM,Morgan Lambert Limited,A045162,10/08/2022,1427272,1596.00,Servicing
North West Leicestershire District Council,31UH,Corporate Director,Human Resources,HR,Arnold Clark Vehicle Management,A035549,10/08/2022,1427377,2159.77,Items To Be Leased
North West Leicestershire District Council,31UH,Housing Repairs,HRA Housing Repairs & Maintenance,HRAHRM,Sure Maintenance Ltd,A040460,10/08/2022,1427383,3186.59,Plumbing & Heating
North West Leicestershire District Council,31UH,Housing Repairs,HRA Housing Repairs & Maintenance,HRAHRM,Sure Maintenance Ltd,A040460,10/08/2022,1427385,372.14,Plumbing & Heating
North West Leicestershire District Council,31UH,Housing Repairs,HRA Housing Repairs & Maintenance,HRAHRM,Sure Maintenance Ltd,A040460,10/08/2022,1427386,2485.01,Plumbing & Heating
North West Leicestershire District Council,31UH,Housing Repairs,HRA Housing Repairs & Maintenance,HRAHRM,Redacted- Personal Data,A047558,03/08/2022,1426981,250.00,Compensation
North West Leicestershire District Council,31UH,Housing Repairs,HRA Housing Repairs & Maintenance,HRAHRM,Sure Maintenance Ltd,A040460,03/08/2022,1426983,392.05,Plumbing & Heating
North West Leicestershire District Council,31UH,Housing Repairs,HRA Housing Repairs & Maintenance,HRAHRM,Dalrod UK Ltd,A046051,03/08/2022,1427003,995.95,Sewerage & Environmental
North West Leicestershire District Council,31UH,Housing Repairs,HRA Housing Repairs & Maintenance,HRAHRM,Dalrod UK Ltd,A046051,03/08/2022,1427004,950.00,Sewerage & Environmental
North West Leicestershire District Council,31UH,Housing Repairs,HRA Housing Repairs & Maintenance,HRAHRM,Tersus Consultancy Limited,A046925,03/08/2022,1427005,2643.66,Consultants Fees
North West Leicestershire District Council,31UH,Finance,Financial Planning,FINPLA,"Department for Business, Energy & Industrial Strategy",A046630,03/08/2022,1427006,170000.00,Business Grant recovery 2022
North West Leicestershire District Council,31UH,Housing Repairs,HRA Housing Repairs & Maintenance,HRAHRM,Sure Maintenance Ltd,A040460,03/08/2022,1427007,11895.80,Plumbing & Heating
North West Leicestershire District Council,31UH,Housing Repairs,HRA Housing Repairs & Maintenance,HRAHRM,Dalrod UK Ltd,A046051,03/08/2022,1427033,995.00,Sewerage & Environmental
North West Leicestershire District Council,31UH,Housing Repairs,HRA Housing Repairs & Maintenance,HRAHRM,Dalrod UK Ltd,A046051,03/08/2022,1427034,1627.15,Sewerage & Environmental
North West Leicestershire District Council,31UH,Housing Repairs,HRA Housing Repairs & Maintenance,HRAHRM,Dalrod UK Ltd,A046051,03/08/2022,1427035,1022.57,Sewerage & Environmental
North West Leicestershire District Council,31UH,Housing Repairs,HRA Housing Repairs & Maintenance,HRAHRM,Dalrod UK Ltd,A046051,03/08/2022,1427036,1610.61,Sewerage & Environmental
North West Leicestershire District Council,31UH,Property Services,Property Commercial Lettings,PROPCL,British Telecommunications Plc,A000233,03/08/2022,1427048,554.50,Telephones
North West Leicestershire District Council,31UH,Street Management,Environment Parks,ENOP,Water Plus Limited,A044043,03/08/2022,1426780,366.32,Water Charges (Metered)
North West Leicestershire District Council,31UH,Finance,Exchequer Services,EXCH,Comensura Limited,A036958,03/08/2022,1426817,18515.04,Agency Staff
North West Leicestershire District Council,31UH,Housing Repairs,HRA Housing Repairs & Maintenance,HRAHRM,McHale Contracts & Plant Environmental LLP,A046696,03/08/2022,1426819,4140.19,Asbestos Surveys
North West Leicestershire District Council,31UH,Finance,Exchequer Services,EXCH,Click Travel Ltd,A044308,03/08/2022,1426823,5432.01,Accomodation and Travel
North West Leicestershire District Council,31UH,Housing Repairs,HRA Housing Repairs & Maintenance,HRAHRM,Sure Maintenance Ltd,A040460,03/08/2022,1426909,266.40,Plumbing & Heating
North West Leicestershire District Council,31UH,Housing Repairs,HRA Housing Repairs & Maintenance,HRAHRM,Sure Maintenance Ltd,A040460,03/08/2022,1426912,440.03,Plumbing & Heating
North West Leicestershire District Council,31UH,Housing Repairs,HRA Housing Repairs & Maintenance,HRAHRM,Sure Maintenance Ltd,A040460,03/08/2022,1426916,674.52,Plumbing & Heating
North West Leicestershire District Council,31UH,Housing Repairs,HRA Housing Repairs & Maintenance,HRAHRM,Sure Maintenance Ltd,A040460,03/08/2022,1426917,18986.62,Plumbing & Heating
North West Leicestershire District Council,31UH,Housing Repairs,HRA Housing Repairs & Maintenance,HRAHRM,Rybka,A046735,03/08/2022,1426920,5229.00,General repairs
North West Leicestershire District Council,31UH,Finance,Exchequer Services,EXCH,Click Travel Ltd,A044308,03/08/2022,1426921,7817.62,Accomodation and Travel
North West Leicestershire District Council,31UH,Housing,HRA Housing Management,HRAHM,Tennals Pest Control,A045705,03/08/2022,1426923,825.00,External Contractor Payments
North West Leicestershire District Council,31UH,Housing,HRA Housing Management,HRAHM,JLA Limited,A043639,03/08/2022,1426924,401.00,Cleaning & Domestic Equipment
North West Leicestershire District Council,31UH,Legal & Democratic,Legal Services,LDLS,Thomson Reuters (Professional) UK Limited,A037595,03/08/2022,1426926,1206.93,Computing
North West Leicestershire District Council,31UH,Housing,HRA Housing Management,HRAHM,Leicestershire County Council,A000950,03/08/2022,1426928,1991.87,Contract Cleaning
North West Leicestershire District Council,31UH,Housing Repairs,HRA Housing Repairs & Maintenance,HRAHRM,Timber-Link Fencing Ltd,A033297,10/08/2022,1427288,1324.00,External Contractor Payments
North West Leicestershire District Council,31UH,Housing Repairs,HRA Housing Repairs & Maintenance,HRAHRM,Timber-Link Fencing Ltd,A033297,10/08/2022,1427394,1833.00,External Contractor Payments
North West Leicestershire District Council,31UH,Housing Repairs,HRA Housing Repairs & Maintenance,HRAHRM,Timber-Link Fencing Ltd,A033297,10/08/2022,1427395,1000.00,External Contractor Payments
North West Leicestershire District Council,31UH,Housing Repairs,HRA Housing Repairs & Maintenance,HRAHRM,Timber-Link Fencing Ltd,A033297,10/08/2022,1427396,500.00,External Contractor Payments
North West Leicestershire District Council,31UH,Housing Repairs,HRA Housing Repairs & Maintenance,HRAHRM,Timber-Link Fencing Ltd,A033297,10/08/2022,1427397,4668.00,External Contractor Payments
North West Leicestershire District Council,31UH,Housing Repairs,HRA Housing Repairs & Maintenance,HRAHRM,Timber-Link Fencing Ltd,A033297,10/08/2022,1427398,1335.00,External Contractor Payments
North West Leicestershire District Council,31UH,Housing Repairs,HRA Housing Repairs & Maintenance,HRAHRM,Timber-Link Fencing Ltd,A033297,10/08/2022,1427399,1248.00,External Contractor Payments
North West Leicestershire District Council,31UH,Housing Repairs,HRA Housing Repairs & Maintenance,HRAHRM,Timber-Link Fencing Ltd,A033297,03/08/2022,1427008,18420.00,External Contractor Payments
North West Leicestershire District Council,31UH,Housing Repairs,HRA Housing Repairs & Maintenance,HRAHRM,Timber-Link Fencing Ltd,A033297,03/08/2022,1427009,283.00,External Contractor Payments
North West Leicestershire District Council,31UH,Housing Repairs,HRA Housing Repairs & Maintenance,HRAHRM,Timber-Link Fencing Ltd,A033297,03/08/2022,1427010,832.00,External Contractor Payments
North West Leicestershire District Council,31UH,Housing Repairs,HRA Housing Repairs & Maintenance,HRAHRM,Timber-Link Fencing Ltd,A033297,03/08/2022,1427011,840.00,External Contractor Payments
North West Leicestershire District Council,31UH,Housing Repairs,HRA Housing Repairs & Maintenance,HRAHRM,Timber-Link Fencing Ltd,A033297,03/08/2022,1427012,775.00,External Contractor Payments
North West Leicestershire District Council,31UH,Housing Repairs,HRA Housing Repairs & Maintenance,HRAHRM,Timber-Link Fencing Ltd,A033297,03/08/2022,1427013,1244.00,External Contractor Payments
North West Leicestershire District Council,31UH,Housing Repairs,HRA Housing Repairs & Maintenance,HRAHRM,Timber-Link Fencing Ltd,A033297,03/08/2022,1427014,628.00,External Contractor Payments
North West Leicestershire District Council,31UH,Housing Repairs,HRA Housing Repairs & Maintenance,HRAHRM,Timber-Link Fencing Ltd,A033297,03/08/2022,1427015,1206.00,External Contractor Payments
North West Leicestershire District Council,31UH,Housing Repairs,HRA Housing Repairs & Maintenance,HRAHRM,Timber-Link Fencing Ltd,A033297,03/08/2022,1427017,1673.00,External Contractor Payments
North West Leicestershire District Council,31UH,Housing Repairs,HRA Housing Repairs & Maintenance,HRAHRM,Timber-Link Fencing Ltd,A033297,03/08/2022,1427018,303.00,External Contractor Payments
North West Leicestershire District Council,31UH,Housing Repairs,HRA Housing Repairs & Maintenance,HRAHRM,Timber-Link Fencing Ltd,A033297,31/08/2022,1428070,2692.00,External Contractor Payments
North West Leicestershire District Council,31UH,Housing Repairs,HRA Housing Repairs & Maintenance,HRAHRM,Timber-Link Fencing Ltd,A033297,31/08/2022,1428071,2925.00,External Contractor Payments
North West Leicestershire District Council,31UH,Housing Repairs,HRA Housing Repairs & Maintenance,HRAHRM,Timber-Link Fencing Ltd,A033297,31/08/2022,1428073,502.00,External Contractor Payments
North West Leicestershire District Council,31UH,Housing Repairs,HRA Housing Repairs & Maintenance,HRAHRM,Timber-Link Fencing Ltd,A033297,17/08/2022,1427557,1500.00,External Contractor Payments
North West Leicestershire District Council,31UH,Housing Repairs,HRA Housing Repairs & Maintenance,HRAHRM,Timber-Link Fencing Ltd,A033297,17/08/2022,1427558,2003.00,External Contractor Payments
North West Leicestershire District Council,31UH,Housing Repairs,HRA Housing Repairs & Maintenance,HRAHRM,Timber-Link Fencing Ltd,A033297,17/08/2022,1427560,250.00,External Contractor Payments
North West Leicestershire District Council,31UH,Housing Repairs,HRA Housing Repairs & Maintenance,HRAHRM,Timber-Link Fencing Ltd,A033297,17/08/2022,1427561,3007.00,External Contractor Payments
North West Leicestershire District Council,31UH,Housing Repairs,HRA Housing Repairs & Maintenance,HRAHRM,Timber-Link Fencing Ltd,A033297,17/08/2022,1427562,608.00,External Contractor Payments
North West Leicestershire District Council,31UH,Housing Repairs,HRA Housing Repairs & Maintenance,HRAHRM,Timber-Link Fencing Ltd,A033297,17/08/2022,1427563,2267.00,External Contractor Payments
North West Leicestershire District Council,31UH,Housing Repairs,HRA Housing Repairs & Maintenance,HRAHRM,Timber-Link Fencing Ltd,A033297,17/08/2022,1427565,306.00,External Contractor Payments
North West Leicestershire District Council,31UH,Housing Repairs,HRA Housing Repairs & Maintenance,HRAHRM,Timber-Link Fencing Ltd,A033297,17/08/2022,1427566,870.00,External Contractor Payments
North West Leicestershire District Council,31UH,Housing Repairs,HRA Housing Repairs & Maintenance,HRAHRM,Timber-Link Fencing Ltd,A033297,17/08/2022,1427567,1696.00,External Contractor Payments
North West Leicestershire District Council,31UH,Housing Repairs,HRA Housing Repairs & Maintenance,HRAHRM,Timber-Link Fencing Ltd,A033297,17/08/2022,1427568,3085.00,External Contractor Payments
North West Leicestershire District Council,31UH,Housing Repairs,HRA Housing Repairs & Maintenance,HRAHRM,Timber-Link Fencing Ltd,A033297,17/08/2022,1427569,1200.00,External Contractor Payments
North West Leicestershire District Council,31UH,Housing Repairs,HRA Housing Repairs & Maintenance,HRAHRM,Timber-Link Fencing Ltd,A033297,17/08/2022,1427570,1315.00,External Contractor Payments
North West Leicestershire District Council,31UH,Housing Repairs,HRA Housing Repairs & Maintenance,HRAHRM,Emperor Scaffolding Limited,A038405,31/08/2022,1428046,660.00,General Materials
North West Leicestershire District Council,31UH,Housing Repairs,HRA Housing Repairs & Maintenance,HRAHRM,Emperor Scaffolding Limited,A038405,31/08/2022,1428047,660.00,General Materials
North West Leicestershire District Council,31UH,Housing Repairs,HRA Housing Repairs & Maintenance,HRAHRM,Emperor Scaffolding Limited,A038405,31/08/2022,1428048,1560.00,General Materials
North West Leicestershire District Council,31UH,Housing Repairs,HRA Housing Repairs & Maintenance,HRAHRM,Dalrod UK Ltd,A046051,31/08/2022,1428049,758.06,Sewerage & Environmental
North West Leicestershire District Council,31UH,Housing Repairs,HRA Housing Repairs & Maintenance,HRAHRM,Geze Uk Limited,A023130,31/08/2022,1428051,390.00,Lift maintenance
North West Leicestershire District Council,31UH,Housing Repairs,HRA Housing Repairs & Maintenance,HRAHRM,Emperor Scaffolding Limited,A038405,31/08/2022,1428052,1210.00,General Materials
North West Leicestershire District Council,31UH,Housing Repairs,HRA Housing Repairs & Maintenance,HRAHRM,Emperor Scaffolding Limited,A038405,31/08/2022,1428053,2040.00,General Materials
North West Leicestershire District Council,31UH,Housing Repairs,HRA Housing Repairs & Maintenance,HRAHRM,Dalrod UK Ltd,A046051,31/08/2022,1428054,859.55,Sewerage & Environmental
North West Leicestershire District Council,31UH,Housing Repairs,HRA Housing Repairs & Maintenance,HRAHRM,Laker BMS Ltd,A031787,31/08/2022,1428055,1528.29,Contract Payments (Dws) Ext
North West Leicestershire District Council,31UH,Housing Repairs,HRA Housing Repairs & Maintenance,HRAHRM,John Merison BMC Ltd,A001092,31/08/2022,1428056,2261.38,Contract Payments (Dws) Ext
North West Leicestershire District Council,31UH,Housing Repairs,HRA Housing Repairs & Maintenance,HRAHRM,Emperor Scaffolding Limited,A038405,31/08/2022,1428057,750.00,General Materials
North West Leicestershire District Council,31UH,Housing Repairs,HRA Housing Repairs & Maintenance,HRAHRM,Emperor Scaffolding Limited,A038405,31/08/2022,1428058,660.00,General Materials
North West Leicestershire District Council,31UH,Housing Repairs,HRA Housing Repairs & Maintenance,HRAHRM,Emperor Scaffolding Limited,A038405,31/08/2022,1428059,1960.00,General Materials
North West Leicestershire District Council,31UH,Housing Repairs,HRA Housing Repairs & Maintenance,HRAHRM,Dalrod UK Ltd,A046051,31/08/2022,1428060,796.76,Sewerage & Environmental
North West Leicestershire District Council,31UH,Housing Repairs,HRA Housing Repairs & Maintenance,HRAHRM,Orbis Property Protection Ltd,A028149,31/08/2022,1428062,951.00,Contract Cleaning
North West Leicestershire District Council,31UH,Housing Repairs,HRA Housing Repairs & Maintenance,HRAHRM,Emperor Scaffolding Limited,A038405,31/08/2022,1428063,1650.00,General Materials
North West Leicestershire District Council,31UH,Housing Repairs,HRA Housing Repairs & Maintenance,HRAHRM,Emperor Scaffolding Limited,A038405,31/08/2022,1428064,660.00,General Materials
North West Leicestershire District Council,31UH,Housing Repairs,HRA Housing Repairs & Maintenance,HRAHRM,Emperor Scaffolding Limited,A038405,31/08/2022,1428065,2240.00,General Materials
North West Leicestershire District Council,31UH,Housing Repairs,HRA Housing Repairs & Maintenance,HRAHRM,Laker BMS Ltd,A031787,31/08/2022,1428066,12759.60,Contract Payments (Dws) Ext
North West Leicestershire District Council,31UH,Housing Repairs,HRA Housing Repairs & Maintenance,HRAHRM,John Merison BMC Ltd,A001092,31/08/2022,1428067,2392.12,Contract Payments (Dws) Ext
North West Leicestershire District Council,31UH,Housing Repairs,HRA Housing Repairs & Maintenance,HRAHRM,Emperor Scaffolding Limited,A038405,17/08/2022,1427513,395.00,General Materials
North West Leicestershire District Council,31UH,Housing Repairs,HRA Housing Repairs & Maintenance,HRAHRM,Emperor Scaffolding Limited,A038405,17/08/2022,1427516,1720.00,General Materials
North West Leicestershire District Council,31UH,Housing Repairs,HRA Housing Repairs & Maintenance,HRAHRM,Emperor Scaffolding Limited,A038405,17/08/2022,1427517,660.00,General Materials
North West Leicestershire District Council,31UH,Housing Repairs,HRA Housing Repairs & Maintenance,HRAHRM,Emperor Scaffolding Limited,A038405,17/08/2022,1427518,1560.00,General Materials
North West Leicestershire District Council,31UH,Housing Repairs,HRA Housing Repairs & Maintenance,HRAHRM,Laker BMS Ltd,A031787,17/08/2022,1427519,5756.78,Contract Payments (Dws) Ext
North West Leicestershire District Council,31UH,Housing Repairs,HRA Housing Repairs & Maintenance,HRAHRM,Laker BMS Ltd,A031787,17/08/2022,1427520,2788.93,Contract Payments (Dws) Ext
North West Leicestershire District Council,31UH,Housing Repairs,HRA Housing Repairs & Maintenance,HRAHRM,Emperor Scaffolding Limited,A038405,17/08/2022,1427523,375.00,General Materials
North West Leicestershire District Council,31UH,Housing Repairs,HRA Housing Repairs & Maintenance,HRAHRM,Emperor Scaffolding Limited,A038405,17/08/2022,1427526,1960.00,General Materials
North West Leicestershire District Council,31UH,Housing Repairs,HRA Housing Repairs & Maintenance,HRAHRM,Emperor Scaffolding Limited,A038405,17/08/2022,1427527,800.00,General Materials
North West Leicestershire District Council,31UH,Housing Repairs,HRA Housing Repairs & Maintenance,HRAHRM,Emperor Scaffolding Limited,A038405,17/08/2022,1427528,2080.00,General Materials
North West Leicestershire District Council,31UH,Housing Repairs,HRA Housing Repairs & Maintenance,HRAHRM,Laker BMS Ltd,A031787,17/08/2022,1427529,10388.30,Contract Payments (Dws) Ext
North West Leicestershire District Council,31UH,Housing Repairs,HRA Housing Repairs & Maintenance,HRAHRM,Laker BMS Ltd,A031787,17/08/2022,1427530,5007.67,Contract Payments (Dws) Ext
North West Leicestershire District Council,31UH,Housing Repairs,HRA Housing Repairs & Maintenance,HRAHRM,Emperor Scaffolding Limited,A038405,17/08/2022,1427532,315.00,General Materials
North West Leicestershire District Council,31UH,Housing Repairs,HRA Housing Repairs & Maintenance,HRAHRM,Emperor Scaffolding Limited,A038405,17/08/2022,1427534,375.00,General Materials
North West Leicestershire District Council,31UH,Housing Repairs,HRA Housing Repairs & Maintenance,HRAHRM,Emperor Scaffolding Limited,A038405,17/08/2022,1427535,740.00,General Materials
North West Leicestershire District Council,31UH,Housing Repairs,HRA Housing Repairs & Maintenance,HRAHRM,Emperor Scaffolding Limited,A038405,17/08/2022,1427536,1520.00,General Materials
North West Leicestershire District Council,31UH,Housing Repairs,HRA Housing Repairs & Maintenance,HRAHRM,Laker BMS Ltd,A031787,17/08/2022,1427538,3881.68,Contract Payments (Dws) Ext
North West Leicestershire District Council,31UH,Housing Repairs,HRA Housing Repairs & Maintenance,HRAHRM,John Merison BMC Ltd,A001092,17/08/2022,1427539,1834.72,Contract Payments (Dws) Ext
North West Leicestershire District Council,31UH,Housing Repairs,HRA Housing Repairs & Maintenance,HRAHRM,Emperor Scaffolding Limited,A038405,17/08/2022,1427543,300.00,General Materials
North West Leicestershire District Council,31UH,Housing Repairs,HRA Housing Repairs & Maintenance,HRAHRM,Emperor Scaffolding Limited,A038405,17/08/2022,1427544,440.00,General Materials
North West Leicestershire District Council,31UH,Housing Repairs,HRA Housing Repairs & Maintenance,HRAHRM,Emperor Scaffolding Limited,A038405,17/08/2022,1427545,1820.00,General Materials
North West Leicestershire District Council,31UH,Housing Repairs,HRA Housing Repairs & Maintenance,HRAHRM,Emperor Scaffolding Limited,A038405,17/08/2022,1427546,920.00,General Materials
North West Leicestershire District Council,31UH,Housing Repairs,HRA Housing Repairs & Maintenance,HRAHRM,Emperor Scaffolding Limited,A038405,17/08/2022,1427547,740.00,General Materials
North West Leicestershire District Council,31UH,Housing Repairs,HRA Housing Repairs & Maintenance,HRAHRM,Laker BMS Ltd,A031787,17/08/2022,1427548,2528.96,Contract Payments (Dws) Ext
North West Leicestershire District Council,31UH,Housing Repairs,HRA Housing Repairs & Maintenance,HRAHRM,Dalrod UK Ltd,A046051,03/08/2022,1426984,1610.61,Sewerage & Environmental
North West Leicestershire District Council,31UH,Housing Repairs,HRA Housing Repairs & Maintenance,HRAHRM,Severn Trent Water Limited,A001468,03/08/2022,1426985,1041.95,Water  Services
North West Leicestershire District Council,31UH,Housing Repairs,HRA Housing Repairs & Maintenance,HRAHRM,Dalrod UK Ltd,A046051,03/08/2022,1426987,995.95,Sewerage & Environmental
North West Leicestershire District Council,31UH,Housing Repairs,HRA Housing Repairs & Maintenance,HRAHRM,John Merison BMC Ltd,A001092,03/08/2022,1426988,2399.14,Contract Payments (Dws) Ext
North West Leicestershire District Council,31UH,Housing Repairs,HRA Housing Repairs & Maintenance,HRAHRM,Laker BMS Ltd,A031787,03/08/2022,1426989,5912.29,Contract Payments (Dws) Ext
North West Leicestershire District Council,31UH,Housing Repairs,HRA Housing Repairs & Maintenance,HRAHRM,Dalrod UK Ltd,A046051,03/08/2022,1426990,992.92,Sewerage & Environmental
North West Leicestershire District Council,31UH,Housing Repairs,HRA Housing Repairs & Maintenance,HRAHRM,Orbis Property Protection Ltd,A028149,03/08/2022,1426991,865.30,Contract Cleaning
North West Leicestershire District Council,31UH,Housing Repairs,HRA Housing Repairs & Maintenance,HRAHRM,Laker BMS Ltd,A031787,03/08/2022,1426992,6307.36,Contract Payments (Dws) Ext
North West Leicestershire District Council,31UH,Housing Repairs,HRA Housing Repairs & Maintenance,HRAHRM,Dalrod UK Ltd,A046051,03/08/2022,1426993,1991.90,Sewerage & Environmental
North West Leicestershire District Council,31UH,Housing Repairs,HRA Housing Repairs & Maintenance,HRAHRM,Emperor Scaffolding Limited,A038405,03/08/2022,1426994,415.00,General Materials
North West Leicestershire District Council,31UH,Housing Repairs,HRA Housing Repairs & Maintenance,HRAHRM,Laker BMS Ltd,A031787,03/08/2022,1426995,5576.14,Contract Payments (Dws) Ext
North West Leicestershire District Council,31UH,Street Management,Environment - Street Scene,ESS,Phonographic Performances Ltd,A001300,03/08/2022,1426975,835.24,Licences
North West Leicestershire District Council,31UH,Housing,HRA Performance & Business Support,HRAPBS,Aareon UK Ltd,A045197,17/08/2022,1427109,3480.00,Contract Payments (Other) Ext
North West Leicestershire District Council,31UH,Housing,HRA Performance & Business Support,HRAPBS,Aareon UK Ltd,A045197,17/08/2022,1427129,435.00,Contract Payments (Other) Ext
North West Leicestershire District Council,31UH,Street Management,Environment Parks,ENOP,Regarde Security Ltd,A013049,17/08/2022,1427242,1202.80,Security Services
North West Leicestershire District Council,31UH,Information Technology,ICT Services,ICT,Phoenix Software Limited,A001298,17/08/2022,1427460,2750.40,Corporate IT Licences
North West Leicestershire District Council,31UH,Street Management,Environment Parks,ENOP,One Stop Promotions (Leics) Ltd,A001240,17/08/2022,1427503,330.00,Operational Purchases
North West Leicestershire District Council,31UH,Finance,Financial Planning,FINPLA,Mazars LLP,A045078,17/08/2022,1427579,3100.00,Audit Commision Fees - Grant Claims
North West Leicestershire District Council,31UH,Corporate Director,Human Resources,HR,TMP Worldwide Ltd,A045319,17/08/2022,1427593,600.00,Employee Advertising
North West Leicestershire District Council,31UH,Finance,Financial Planning,FINPLA,Zurich Municipal,A001835,31/08/2022,1428113,2800.00,Miscellaneous Insurances
North West Leicestershire District Council,31UH,Street Management,Environment Transport,ENOT,PR Horticultural Services Limited,A046639,10/08/2022,1427203,419.59,Scheduled Servicing - Parts
North West Leicestershire District Council,31UH,Street Management,Environment Transport,ENOT,Pentagon Parts Distribution,A046128,10/08/2022,1427204,467.94,Vehicle Parts and Maintenance
North West Leicestershire District Council,31UH,Street Management,Environment Transport,ENOT,S & B Tyres Limited,A034071,10/08/2022,1427214,1760.00,Vehicle Parts and Maintenance
North West Leicestershire District Council,31UH,Street Management,Environment Transport,ENOT,Enterprise Flex-E-Rent,A046516,10/08/2022,1427216,1167.04,Hire Of Transport
North West Leicestershire District Council,31UH,Street Management,Environment Transport,ENOT,J F Lloyd & Sons,A000991,10/08/2022,1427218,300.00,Hire Of Operational Equipment
North West Leicestershire District Council,31UH,Street Management,Environment Transport,ENOT,Hako Machines Limited,A034237,10/08/2022,1427225,3145.26,Operational Purchases
North West Leicestershire District Council,31UH,Chief Exec,Chief Executive,CHEX,Nottingham City Council,A041558,17/08/2022,1427703,5535.00,Subscriptions
North West Leicestershire District Council,31UH,Housing,HRA Performance & Business Support,HRAPBS,Baily Garner LLP,A043845,03/08/2022,1426349,1930.00,Legal & Professional Services
North West Leicestershire District Council,31UH,Housing,HRA Performance & Business Support,HRAPBS,Baily Garner LLP,A043845,03/08/2022,1426789,1930.00,Legal & Professional Services
North West Leicestershire District Council,31UH,Corporate Director,Human Resources,HR,Starfish,A047178,03/08/2022,1427044,17488.00,Interim Support
North West Leicestershire District Council,31UH,Leisure & Culture,Cultural Services Arts & Events,CULTEV,The Big Events Company Leicester Ltd,A047573,12/08/2022,1427553,9159.00,Special Events
North West Leicestershire District Council,31UH,Information Technology,ICT Services,ICT,ACS Systems (UK) Ltd T/a ACS Office Solutions,A043447,31/08/2022,1427758,1145.30,Operational Equipment
North West Leicestershire District Council,31UH,Corporate Director,Human Resources,HR,Health Management Ltd,A038840,31/08/2022,1427902,833.23,Medical Fees
North West Leicestershire District Council,31UH,Environmental Health,Environmental Health & Licensing,EEHL,Eville And Jones Limited,A033670,31/08/2022,1427930,3272.85,Vet Inspection
North West Leicestershire District Council,31UH,Neighbourhoods & Communities,N & C Neighbourhoods,NACN,Ibstock Community Voice,A043359,31/08/2022,1427960,300.00,Free Tree Scheme
North West Leicestershire District Council,31UH,Housing,HRA Performance & Business Support,HRAPBS,Aareon UK Ltd,A045197,31/08/2022,1427966,1740.00,Contract Payments (Other) Ext
North West Leicestershire District Council,31UH,Communications,Corporate - Customer Services,CS,Quadient UK Ltd,A000079,31/08/2022,1428007,661.50,Operational Equipment - Rep & Maint
North West Leicestershire District Council,31UH,Property Services,Property Facilities Management,PROPFM,John Merison BMC Ltd,A001092,31/08/2022,1428013,899.20,General Repairs
North West Leicestershire District Council,31UH,Economic Development,Business Focus Group,BFG,Capita Business Services Ltd,A002968,31/08/2022,1428016,2600.00,Computing
North West Leicestershire District Council,31UH,Leisure & Culture,Cultural Services Arts & Events,CULTEV,The Big Events Company Leicester Ltd,A047573,31/08/2022,1428018,9159.00,N.W.L. Arts Festival
North West Leicestershire District Council,31UH,Street Management,Environment Parks,ENOP,The Pitchmark Group,A047038,31/08/2022,1428020,1260.00,Operational Purchases
North West Leicestershire District Council,31UH,Neighbourhoods & Communities,N & C Neighbourhoods,NACN,TB Sport,A047373,31/08/2022,1428027,5650.99,Contributions
North West Leicestershire District Council,31UH,Street Management,Environment Transport,ENOT,Westbury Industrial Supplies Limited,A009933,03/08/2022,1426826,390.40,Protective Clothing
North West Leicestershire District Council,31UH,Housing Repairs,HRA Housing Repairs & Maintenance,HRAHRM,BRITISH SAFETY COUNCIL SERVICES,A028280,03/08/2022,1426828,448.00,Legal & Professional Services
North West Leicestershire District Council,31UH,Corporate Director,Corporate Director,CORDI,Jeakins Weir Ltd,A047351,03/08/2022,1426956,11172.04,Contract Payments (Other) Ext
North West Leicestershire District Council,31UH,Street Management,Environment Parks,ENOP,Gilvar Lining Ltd,A040848,03/08/2022,1427025,495.00,Operational Purchases
North West Leicestershire District Council,31UH,Property Services,Property Facilities Management,PROPFM,ABCA Systems Limited,A047114,16/08/2022,1426172,820.30,Fire Precaution Appliances
North West Leicestershire District Council,31UH,Property Services,Property Facilities Management,PROPFM,ABCA Systems Limited,A047114,16/08/2022,1427571,2911.68,General Repairs
North West Leicestershire District Council,31UH,Street Management,Environment Parks,ENOP,New Build Landscaping & Home,A043278,31/08/2022,1427917,1770.00,External Contractor Payments
North West Leicestershire District Council,31UH,Street Management,Environment Parks,ENOP,New Build Landscaping & Home,A043278,31/08/2022,1427922,980.00,External Contractor Payments
North West Leicestershire District Council,31UH,Information Technology,ICT Services,ICT,Microsoft Ltd,A044997,31/08/2022,1428034,318.65,Admin Equipment - Maintenance
North West Leicestershire District Council,31UH,Street Management,Environment Transport,ENOT,Terberg Matec UK Limited,A001647,31/08/2022,1428080,484.68,Repairs - Parts
North West Leicestershire District Council,31UH,Street Management,Environment Transport,ENOT,Mertrux Ltd,A035291,31/08/2022,1428091,336.52,Vehicle Parts and Maintenance
North West Leicestershire District Council,31UH,Street Management,Environment Transport,ENOT,Michelin Tyre Plc,A046127,31/08/2022,1428092,837.32,Vehicle Parts and Maintenance
North West Leicestershire District Council,31UH,Street Management,Environment Transport,ENOT,Selby's Garage (Woodhouse) Ltd,A044011,31/08/2022,1428098,959.71,Hire Of Operational Equipment
North West Leicestershire District Council,31UH,Street Management,Environment Transport,ENOT,Lubrication Limited,A047091,31/08/2022,1428106,1892.00,Consumable Materials
North West Leicestershire District Council,31UH,Street Management,Environment Waste Management,ENOWM,O Kay Engineering Services Ltd,A041943,31/08/2022,1428109,625.00,Service Contracts - Premises costs
North West Leicestershire District Council,31UH,Finance,Financial Planning,FINPLA,Moore Stephens Insight Ltd,A045967,10/08/2022,1426572,425.00,Computing
North West Leicestershire District Council,31UH,Housing Repairs,HRA Housing Repairs & Maintenance,HRAHRM,Leicestershire County Council,A000950,10/08/2022,1426903,3492.50,Contract Payments (Dws) Ext
North West Leicestershire District Council,31UH,Housing Repairs,HRA Housing Repairs & Maintenance,HRAHRM,Hays Human Resources,A024378,10/08/2022,1426967,925.00,Agency Staff
North West Leicestershire District Council,31UH,Street Management,Environment - Street Scene,ESS,Regarde Security Ltd,A013049,10/08/2022,1427235,332.00,Security Services
North West Leicestershire District Council,31UH,Housing,HRA Housing Management,HRAHM,The Fuel Factory,A045625,10/08/2022,1427236,262.50,Event refreshments
North West Leicestershire District Council,31UH,Property Services,Property Facilities Management,PROPFM,ABCA Systems Limited,A047114,10/08/2022,1427245,1322.00,Building Security
North West Leicestershire District Council,31UH,Property Services,Property Facilities Management,PROPFM,ADT Fire And Security,A000021,10/08/2022,1427258,282.34,Building Security
North West Leicestershire District Council,31UH,Planning & Development,Environment - Development Control,EDC,Onsite Central Ltd,A041348,10/08/2022,1427265,3472.00,Flow Survey
North West Leicestershire District Council,31UH,Corporate Director,Corporate Director,CORDI,IDP (Central) Limited,A047366,10/08/2022,1427267,2120.00,Contract Payments (Other) Ext
North West Leicestershire District Council,31UH,Finance,Financial Planning,FINPLA,Zurich Municipal,A001835,10/08/2022,1427270,723.06,Insurance - Tenants Contributions
North West Leicestershire District Council,31UH,Housing Repairs,HRA Housing Repairs & Maintenance,HRAHRM,Hays Human Resources,A024378,10/08/2022,1427281,925.00,Agency Staff
North West Leicestershire District Council,31UH,Housing Repairs,HRA Housing Repairs & Maintenance,HRAHRM,Hays Human Resources,A024378,10/08/2022,1427283,925.00,Agency Staff
North West Leicestershire District Council,31UH,Housing Repairs,HRA Housing Repairs & Maintenance,HRAHRM,Hays Human Resources,A024378,10/08/2022,1427284,925.00,Agency Staff
North West Leicestershire District Council,31UH,Housing Repairs,HRA Housing Repairs & Maintenance,HRAHRM,Hays Human Resources,A024378,10/08/2022,1427285,925.00,Agency Staff
North West Leicestershire District Council,31UH,Neighbourhoods & Communities,N & C Neighbourhoods,NACN,Helter Skelter Arts Ltd,A043059,10/08/2022,1427362,295.00,Special Events
North West Leicestershire District Council,31UH,Street Management,Environment Transport,ENOT,Trade Price Windscreens Ltd,A040486,10/08/2022,1427370,430.00,Vehicle Parts and Maintenance
North West Leicestershire District Council,31UH,Street Management,Environment Transport,ENOT,Trade Price Windscreens Ltd,A040486,10/08/2022,1427371,430.00,Vehicle Parts and Maintenance
North West Leicestershire District Council,31UH,Corporate Director,Human Resources,HR,UK Healthcare,A047495,10/08/2022,1427378,2087.00,Employee Benefit Scheme
North West Leicestershire District Council,31UH,Economic Development,Business Focus Group,BFG,BE Group,A045039,10/08/2022,1427390,2462.50,Workspace Study
North West Leicestershire District Council,31UH,Housing Repairs,HRA Housing Repairs & Maintenance,HRAHRM,Hays Human Resources,A024378,10/08/2022,1427391,925.00,Agency Staff
North West Leicestershire District Council,31UH,Corporate Director,Human Resources,HR,Wider Plan Ltd,A043948,10/08/2022,1427393,873.00,Staff Benefit Scheme
North West Leicestershire District Council,31UH,Chief Exec,Chief Executive,CHEX,Local Government Association,A002189,17/08/2022,1427704,9656.33,Subscriptions
North West Leicestershire District Council,31UH,Corporate Director,Corporate Director,CORDI,Michael Dyson Associates Ltd,A028431,03/08/2022,1427043,896.00,Legal & Professional Services
North West Leicestershire District Council,31UH,Street Management,Environment Waste Management,ENOWM,Accent Wire Ltd,A044269,17/08/2022,1427511,3120.00,Operational Equipment
North West Leicestershire District Council,31UH,Street Management,Environment Parks,ENOP,Keith Cook Training Services,A027792,17/08/2022,1427585,349.00,Training Expenses
North West Leicestershire District Council,31UH,Street Management,Environment Transport,ENOT,HGV Direct Ltd,A046956,31/08/2022,1428086,324.97,Vehicle Parts and Maintenance
North West Leicestershire District Council,31UH,Street Management,Environment Transport,ENOT,J F Lloyd & Sons,A000991,31/08/2022,1428088,300.00,Hire Of Operational Equipment
North West Leicestershire District Council,31UH,Street Management,Environment Transport,ENOT,J F Lloyd & Sons,A000991,31/08/2022,1428089,270.00,Hire Of Operational Equipment
North West Leicestershire District Council,31UH,Street Management,Environment Transport,ENOT,Shepshed Auto Spares Ltd,A043917,31/08/2022,1428099,253.36,Vehicle Parts and Maintenance
North West Leicestershire District Council,31UH,Street Management,Environment Transport,ENOT,Shepshed Auto Spares Ltd,A043917,31/08/2022,1428100,521.93,Vehicle Parts and Maintenance
North West Leicestershire District Council,31UH,Street Management,Environment Transport,ENOT,Anderson Commercials Limited,A033469,31/08/2022,1428104,340.00,Mot
North West Leicestershire District Council,31UH,Community Directorate,Community Directorate,CODI,JMS Engineers (Midlands) Limited,A047437,31/08/2022,1428107,3298.68,Contract Payments (Other) Ext
North West Leicestershire District Council,31UH,Finance,Financial Planning,FINPLA,Sellick Partnership (East Midlands) Limited,A036668,31/08/2022,1428108,595.00,Agency Staff
North West Leicestershire District Council,31UH,Street Management,Environment Waste Management,ENOWM,Groundsman Tools Ltd,A030744,10/08/2022,1426761,311.79,Operational Equipment
North West Leicestershire District Council,31UH,Corporate Director,Corporate Director,CORDI,Jeakins Weir Ltd,A047351,10/08/2022,1426763,30229.54,Contract Payments (Other) Ext
North West Leicestershire District Council,31UH,Street Management,Environment Waste Management,ENOWM,Groundsman Tools Ltd,A030744,10/08/2022,1426866,1155.00,Operational Equipment
North West Leicestershire District Council,31UH,Neighbourhoods & Communities,N & C Community Safety,NACCS,KisP,A047529,10/08/2022,1426958,2849.00,PCC Early Intervention Expenditure
North West Leicestershire District Council,31UH,Corporate Director,Corporate Director,CORDI,PI Group,A047356,10/08/2022,1427026,90711.00,Furniture
North West Leicestershire District Council,31UH,Neighbourhoods & Communities,N & C Community Safety,NACCS,KisP,A047529,10/08/2022,1427114,360.00,PCC Early Intervention Expenditure
North West Leicestershire District Council,31UH,Legal & Democratic,Electoral & Land Charges,LDELC,Leicestershire County Council,A027423,10/08/2022,1427120,2567.00,LCC Search Fees
North West Leicestershire District Council,31UH,Information Technology,ICT Services,ICT,Premier Paper Group,A042438,10/08/2022,1427125,327.14,Consumable Materials
North West Leicestershire District Council,31UH,Street Management,Environment Transport,ENOT,Anderson Commercials Limited,A033469,10/08/2022,1427137,685.00,Mot
North West Leicestershire District Council,31UH,Street Management,Environment Transport,ENOT,Michelin Tyre Plc,A046127,10/08/2022,1427140,989.68,Vehicle Parts and Maintenance
North West Leicestershire District Council,31UH,Corporate Director,Corporate Director,CORDI,Richards Design Partnership,A047399,10/08/2022,1427179,5850.00,Contract Payments (Other) Ext
North West Leicestershire District Council,31UH,Housing,HRA Housing Management,HRAHM,exi,A045557,10/08/2022,1427180,8542.86,Legal & Professional Services
North West Leicestershire District Council,31UH,Finance,Financial Planning,FINPLA,Vivid Resourcing,A044601,10/08/2022,1427185,2925.00,Agency Staff
North West Leicestershire District Council,31UH,Property Services,Property Facilities Management,PROPFM,D & G Security Systems Ltd,A046874,10/08/2022,1427201,494.50,Service Contracts - Premises costs
North West Leicestershire District Council,31UH,Street Management,Environment Transport,ENOT,Mertrux Ltd,A035291,10/08/2022,1427212,312.83,Vehicle Parts and Maintenance
North West Leicestershire District Council,31UH,Street Management,Environment Transport,ENOT,Mertrux Ltd,A035291,10/08/2022,1427213,312.83,Vehicle Parts and Maintenance
North West Leicestershire District Council,31UH,Street Management,Environment Transport,ENOT,Second 2 None,A031408,10/08/2022,1427220,1200.00,Washing Down of vehicles
North West Leicestershire District Council,31UH,Street Management,Environment Transport,ENOT,Riverside Truck Rental Ltd,A045702,10/08/2022,1427221,5565.00,Hire Of Transport
North West Leicestershire District Council,31UH,Street Management,Environment Transport,ENOT,Riverside Truck Rental Ltd,A045702,10/08/2022,1427222,3759.00,Hire Of Transport
North West Leicestershire District Council,31UH,Street Management,Environment Transport,ENOT,Riverside Truck Rental Ltd,A045702,10/08/2022,1427223,4935.00,Hire Of Transport
North West Leicestershire District Council,31UH,Street Management,Environment Transport,ENOT,Riverside Truck Rental Ltd,A045702,10/08/2022,1427224,2448.30,Vehicle Parts and Maintenance
North West Leicestershire District Council,31UH,Corporate Director,Human Resources,HR,Starfish,A047178,17/08/2022,1427702,9290.50,Interim Support
North West Leicestershire District Council,31UH,Property Services,Property Facilities Management,PROPFM,Readings Property Group Ltd,A045486,10/08/2022,1427110,900.00,Legal & Professional Services
North West Leicestershire District Council,31UH,Street Management,Environment Parks,ENOP,Buxton's Ltd,A029426,10/08/2022,1427111,294.40,Operational Purchases
North West Leicestershire District Council,31UH,Information Technology,ICT Services,ICT,ACS Systems (UK) Ltd T/a ACS Office Solutions,A043447,10/08/2022,1427119,1741.00,Computing
North West Leicestershire District Council,31UH,Property Services,Property Facilities Management,PROPFM,Coalville Cleaning Services,A003037,10/08/2022,1427121,1050.88,Contract Cleaning
North West Leicestershire District Council,31UH,Property Services,Property Commercial Lettings,PROPCL,Coalville Cleaning Services,A003037,10/08/2022,1427122,862.05,Contract Cleaning
North West Leicestershire District Council,31UH,Property Services,Property Commercial Lettings,PROPCL,Coalville Cleaning Services,A003037,10/08/2022,1427124,417.08,Contract Cleaning
North West Leicestershire District Council,31UH,Housing,HRA Performance & Business Support,HRAPBS,Aareon UK Ltd,A045197,10/08/2022,1427126,500.00,Contract Payments (Other) Ext
North West Leicestershire District Council,31UH,Housing,HRA Performance & Business Support,HRAPBS,Aareon UK Ltd,A045197,10/08/2022,1427127,870.00,Contract Payments (Other) Ext
North West Leicestershire District Council,31UH,Street Management,Environment Transport,ENOT,Michelin Tyre Plc,A046127,10/08/2022,1427139,1495.20,Vehicle Parts and Maintenance
North West Leicestershire District Council,31UH,Neighbourhoods & Communities,N & C Community Safety,NACCS,Proudcastle,A040322,10/08/2022,1427146,450.00,Cctv Control Room
North West Leicestershire District Council,31UH,Information Technology,ICT Services,ICT,Cuttlefish Multimedia Ltd,A032102,10/08/2022,1427150,1810.00,Website Maintenance
North West Leicestershire District Council,31UH,Street Management,Environment Transport,ENOT,Westbury Industrial Supplies Limited,A009933,10/08/2022,1427152,415.00,Protective Clothing
North West Leicestershire District Council,31UH,Leisure & Culture,Sport & Physical Activity,SPA,RPT Consulting Ltd,A043782,10/08/2022,1427153,4800.00,Consultants Fees
North West Leicestershire District Council,31UH,Property Services,Property Commercial Lettings,PROPCL,John Merison BMC Ltd,A001092,10/08/2022,1427154,491.62,General Repairs
North West Leicestershire District Council,31UH,Neighbourhoods & Communities,N & C Community Safety,NACCS,ITUS Security Solutions Ltd,A047496,10/08/2022,1427156,4326.00,Service Contracts
North West Leicestershire District Council,31UH,Leisure & Culture,Sport & Physical Activity,SPA,Algeco UK Limited,A005413,10/08/2022,1427159,522.58,Temprary accomodation and secure storage
North West Leicestershire District Council,31UH,Corporate Director,Human Resources,HR,UK Healthcare,A047495,10/08/2022,1427168,2165.00,Employee Benefit Scheme
North West Leicestershire District Council,31UH,Neighbourhoods & Communities,N & C Community Safety,NACCS,Broadland Guarding Services Ltd,A042635,10/08/2022,1427177,4628.82,Service Contracts
North West Leicestershire District Council,31UH,Information Technology,ICT Services,ICT,Cuttlefish Multimedia Ltd,A032102,10/08/2022,1427178,1810.00,Website Maintenance
North West Leicestershire District Council,31UH,Finance,Financial Planning,FINPLA,Opinion Research Services,A045115,10/08/2022,1427196,7437.50,Local Development Framework Expenditure
North West Leicestershire District Council,31UH,Property Services,Property Commercial Lettings,PROPCL,Readings Property Group Ltd,A045486,10/08/2022,1423838,250.00,Legal & Professional Services
North West Leicestershire District Council,31UH,Housing Repairs,HRA Housing Repairs & Maintenance,HRAHRM,ESPO,A000958,10/08/2022,1425231,498.00,Contract Payments (Dws) Ext
North West Leicestershire District Council,31UH,Property Services,Property Commercial Lettings,PROPCL,Readings Property Group Ltd,A045486,10/08/2022,1426096,1250.00,Legal & Professional Services
North West Leicestershire District Council,31UH,Property Services,Property Facilities Management,PROPFM,Vertiv Infrastructure ( Emerson Network Power),A035119,10/08/2022,1426867,1361.00,General Repairs
North West Leicestershire District Council,31UH,Housing Repairs,HRA Housing Repairs & Maintenance,HRAHRM,Tersus Consultancy Limited,A046925,10/08/2022,1426883,3158.16,Consultants Fees
North West Leicestershire District Council,31UH,Property Services,Property Commercial Lettings,PROPCL,Ksa Consulting Engineers Ltd,A008757,10/08/2022,1426890,300.00,General Repairs
North West Leicestershire District Council,31UH,Housing,HRA Older Persons Service,HRAOPS,Tunstall Healthcare (UK) Limited,A001701,10/08/2022,1426922,3980.00,Alarm System Telephones
North West Leicestershire District Council,31UH,Planning & Development,Environment Planning Policy,EPP,Ove Arup & Partners Ltd (Arup),A045943,10/08/2022,1427381,10552.40,Legal & Professional Services
North West Leicestershire District Council,31UH,Leisure & Culture,Cultural Services Arts & Events,CULTEV,Ad:Vantage Digital Ltd,A047525,10/08/2022,1427392,13682.00,Special Events
North West Leicestershire District Council,31UH,Corporate Director,Human Resources,HR,Charnwood Borough Council,A000323,24/08/2022,1427508,4514.00,Corporate Training
North West Leicestershire District Council,31UH,Legal & Democratic,Member Services,LDMS,Association of Electoral Administrators Ltd,A039228,24/08/2022,1427671,661.00,Advertising
North West Leicestershire District Council,31UH,Housing Strategy,Community - Housing Strategy,HS,Alliance Contracting Solutions Ltd,A043325,24/08/2022,1427711,118424.30,Contract Payments (Dws) Ext
North West Leicestershire District Council,31UH,Corporate Director,Corporate Director,CORDI,Western Power Distribution,A038499,24/08/2022,1427748,5879.56,Contract Payments (Other) Ext
North West Leicestershire District Council,31UH,Property Services,Property Facilities Management,PROPFM,Fire Proof Ltd,A039911,24/08/2022,1427754,359.00,General Repairs
North West Leicestershire District Council,31UH,Property Services,Property Commercial Lettings,PROPCL,BB Trees Ltd,A047548,24/08/2022,1427757,420.00,Legal & Professional Services
North West Leicestershire District Council,31UH,Corporate Director,Corporate Director,CORDI,Starfish,A047178,24/08/2022,1427761,9802.00,Interim Support
North West Leicestershire District Council,31UH,Economic Development,Business Focus Group,BFG,Midlands Road Safety Ltd,A047570,24/08/2022,1427800,925.00,Legal & Professional Services
North West Leicestershire District Council,31UH,Street Management,Environment - Street Scene,ESS,Blaby District Council,A000180,24/08/2022,1427805,2950.58,Publicity & Promotion
North West Leicestershire District Council,31UH,Information Technology,ICT Services,ICT,Nviron Limited,A023640,03/08/2022,1426792,1843.00,Admin Equipment - Maintenance
North West Leicestershire District Council,31UH,Housing Repairs,HRA Housing Repairs & Maintenance,HRAHRM,Dodd Group (Midlands) Limited,A036692,03/08/2022,1426853,11166.66,Contract Payments (Dws) Ext
North West Leicestershire District Council,31UH,Environmental Health,Environmental Health & Licensing,EEHL,Animal Care Services Limited,A046488,03/08/2022,1426929,2326.15,Stray Dog Service
North West Leicestershire District Council,31UH,Street Management,Environment - Street Scene,ESS,WK & B Limited,A047501,03/08/2022,1426979,4106.90,Operational Purchases
North West Leicestershire District Council,31UH,Street Management,Environment - Street Scene,ESS,Coalville Cleaning Services,A003037,03/08/2022,1426980,320.00,Health & Safety Repairs/Maintenance
North West Leicestershire District Council,31UH,Corporate Director,Human Resources,HR,Starfish,A047178,03/08/2022,1427000,11310.00,Interim Support
North West Leicestershire District Council,31UH,Housing Repairs,HRA Housing Repairs & Maintenance,HRAHRM,Leicestershire County Council,A000950,17/08/2022,1427423,3426.50,Contract Payments (Dws) Ext
North West Leicestershire District Council,31UH,Housing Repairs,HRA Housing Repairs & Maintenance,HRAHRM,Leicestershire County Council,A000950,17/08/2022,1427424,3451.25,Contract Payments (Dws) Ext
North West Leicestershire District Council,31UH,Property Services,Property Facilities Management,PROPFM,Regarde Security Ltd,A013049,17/08/2022,1427428,601.40,Building Security
North West Leicestershire District Council,31UH,Property Services,Property Facilities Management,PROPFM,Regarde Security Ltd,A013049,17/08/2022,1427429,403.20,Building Security
North West Leicestershire District Council,31UH,Property Services,Property Facilities Management,PROPFM,Regarde Security Ltd,A013049,17/08/2022,1427433,300.70,Building Security
North West Leicestershire District Council,31UH,Housing Repairs,HRA Housing Repairs & Maintenance,HRAHRM,Tersus Consultancy Limited,A046925,17/08/2022,1427451,3482.67,Consultants Fees
North West Leicestershire District Council,31UH,Street Management,Environment Transport,ENOT,EPT Services,A039764,17/08/2022,1427459,979.42,Protective Clothing
North West Leicestershire District Council,31UH,Property Services,Property Facilities Management,PROPFM,Regarde Security Ltd,A013049,17/08/2022,1427465,971.85,Building Security
North West Leicestershire District Council,31UH,Housing Repairs,HRA Housing Repairs & Maintenance,HRAHRM,James Grace Associates,A045696,17/08/2022,1427482,610.14,Agency Staff
North West Leicestershire District Council,31UH,Housing Repairs,HRA Housing Repairs & Maintenance,HRAHRM,James Grace Associates,A045696,17/08/2022,1427483,431.23,Agency Staff
North West Leicestershire District Council,31UH,Property Services,Property Commercial Lettings,PROPCL,Coalville Cleaning Services,A003037,10/08/2022,1425609,417.08,Contract Cleaning
North West Leicestershire District Council,31UH,Street Management,Environment Parks,ENOP,Vitax Limited,A031093,10/08/2022,1426950,319.97,Operational Purchases
North West Leicestershire District Council,31UH,Street Management,Environment Parks,ENOP,Groundsman Tools Ltd,A030744,10/08/2022,1427115,864.32,Operational Purchases
North West Leicestershire District Council,31UH,Property Services,Property Facilities Management,PROPFM,Second Element Ltd,A046693,10/08/2022,1427117,932.00,Legal & Professional Services
North West Leicestershire District Council,31UH,Finance,Financial Planning,FINPLA,Post Office Limited,A047483,10/08/2022,1427261,16408.50,Revs & Bens expenditure funded by grants
North West Leicestershire District Council,31UH,Street Management,Environment Transport,ENOT,Watling JCB Ltd,A032114,10/08/2022,1427268,686.00,Vehicle Parts and Maintenance
North West Leicestershire District Council,31UH,Street Management,Environment Transport,ENOT,Bucher Municipal Limited,A039355,10/08/2022,1427269,950.78,Operational Purchases
North West Leicestershire District Council,31UH,Street Management,Environment Waste Management,ENOWM,ESE World Limited,A001253,24/08/2022,1426369,354.50,General Materials
North West Leicestershire District Council,31UH,Information Technology,ICT Services,ICT,Phoenix Software Limited,A001298,24/08/2022,1427574,988.80,Subscriptions
North West Leicestershire District Council,31UH,Information Technology,ICT Services,ICT,Phoenix Software Limited,A001298,24/08/2022,1427576,12977.16,Admin Equipment - Maintenance
North West Leicestershire District Council,31UH,Housing,HRA Housing Management,HRAHM,MRC Community Action,A001208,24/08/2022,1427578,285.00,HRA Hardship Fund
North West Leicestershire District Council,31UH,Planning & Development,Environment - Development Control,EDC,The Oyster Partnership Ltd,A032796,24/08/2022,1427590,2164.50,External Legal Fees & Advice
North West Leicestershire District Council,31UH,Planning & Development,Environment - Development Control,EDC,The Oyster Partnership Ltd,A032796,24/08/2022,1427591,2164.50,External Legal Fees & Advice
North West Leicestershire District Council,31UH,Finance,Financial Planning,FINPLA,CIPFA,A027467,24/08/2022,1427611,1400.00,Training Expenses
North West Leicestershire District Council,31UH,Environmental Health,Environmental Health & Licensing,EEHL,Animal Care Services Limited,A046488,24/08/2022,1427669,2336.66,Stray Dog Service
North West Leicestershire District Council,31UH,Housing,HRA Performance & Business Support,HRAPBS,Aareon UK Ltd,A045197,24/08/2022,1427713,2610.00,Contract Payments (Other) Ext
North West Leicestershire District Council,31UH,Planning & Development,Environment - Development Control,EDC,Rob Thompson Urbanism Limited,A045846,24/08/2022,1427716,3937.50,Consultants Fees
North West Leicestershire District Council,31UH,Planning & Development,Environment - Development Control,EDC,Rob Thompson Urbanism Limited,A045846,24/08/2022,1427717,3168.00,Consultants Fees
North West Leicestershire District Council,31UH,Planning & Development,Environment - Development Control,EDC,Jonathan Gaynor Planning and Enforcement Services,A047213,24/08/2022,1427719,700.00,External Legal Fees & Advice
North West Leicestershire District Council,31UH,Housing,HRA Performance & Business Support,HRAPBS,Northern Housing Consortium Ltd,A028253,24/08/2022,1427731,1275.00,Subscriptions
North West Leicestershire District Council,31UH,Property Services,Property Commercial Lettings,PROPCL,John Merison BMC Ltd,A001092,03/08/2022,1425928,950.50,General Repairs
North West Leicestershire District Council,31UH,Property Services,Property Facilities Management,PROPFM,John Merison BMC Ltd,A001092,03/08/2022,1426208,907.80,General Repairs
North West Leicestershire District Council,31UH,Planning & Development,Environment - Development Control,EDC,TMP Worldwide Ltd,A045319,03/08/2022,1426771,264.14,Advertising
North West Leicestershire District Council,31UH,Planning & Development,Environment - Development Control,EDC,TMP Worldwide Ltd,A045319,03/08/2022,1426775,289.60,Advertising
North West Leicestershire District Council,31UH,Information Technology,ICT Services,ICT,Chess Cybersecurity Formerly Foursys Ltd,A029908,03/08/2022,1426861,3675.00,Admin Equipment - Purchased & Recharged
North West Leicestershire District Council,31UH,Corporate Director,Corporate Director,CORDI,Jeakins Weir Ltd,A047351,03/08/2022,1426955,3608.72,Contract Payments (Other) Ext
North West Leicestershire District Council,31UH,Street Management,Environment Transport,ENOT,Watson Fuels,A047235,03/08/2022,1426961,32012.33,Diesel
North West Leicestershire District Council,31UH,Finance,Financial Planning,FINPLA,Mazars LLP,A045078,03/08/2022,1426963,9727.00,Audit Commision Fees-General
North West Leicestershire District Council,31UH,Property Services,Property Commercial Lettings,PROPCL,John Merison BMC Ltd,A001092,03/08/2022,1427021,1267.20,General Repairs
North West Leicestershire District Council,31UH,Finance,Financial Planning,FINPLA,Sports & Leisure Management Ltd,A045556,03/08/2022,1427028,38643.76,Contract Payments (Other) Ext
North West Leicestershire District Council,31UH,Finance,Financial Planning,FINPLA,Vivid Resourcing,A044601,03/08/2022,1427030,3250.00,Agency Staff
North West Leicestershire District Council,31UH,Corporate Director,Corporate Director,CORDI,Jeakins Weir Ltd,A047351,17/08/2022,1427486,130326.67,Contract Payments (Other) Ext
North West Leicestershire District Council,31UH,Neighbourhoods & Communities,N & C Community Safety,NACCS,Charnwood Borough Council,A000323,31/08/2022,1427760,5877.76,Computer Software Maintenance
North West Leicestershire District Council,31UH,Legal & Democratic,Business Development Team,BDT,Apse,A018837,31/08/2022,1427923,2422.00,Subscriptions
North West Leicestershire District Council,31UH,Economic Development,Business Focus Group,BFG,JAD Consulting (Cheshire) Ltd,A047572,31/08/2022,1427925,500.00,Legal & Professional Services
North West Leicestershire District Council,31UH,Street Management,Environment Transport,ENOT,Westbury Industrial Supplies Limited,A009933,31/08/2022,1427932,1195.04,Protective Clothing
North West Leicestershire District Council,31UH,Street Management,Environment Transport,ENOT,Refuse Vehicle Solutions Ltd,A047317,31/08/2022,1427945,1063.90,Hire Of Transport
North West Leicestershire District Council,31UH,Neighbourhoods & Communities,N & C Community Safety,NACCS,The Professional Promotion Company Ltd,A043727,31/08/2022,1427963,1903.00,PCC Early Intervention Expenditure
North West Leicestershire District Council,31UH,Finance,Financial Planning,FINPLA,Sellick Partnership (East Midlands) Limited,A036668,31/08/2022,1427965,323.00,Agency Staff
North West Leicestershire District Council,31UH,Housing Repairs,HRA Housing Repairs & Maintenance,HRAHRM,James Grace Associates,A045696,31/08/2022,1427969,665.19,Agency Staff
North West Leicestershire District Council,31UH,Housing Repairs,HRA Housing Repairs & Maintenance,HRAHRM,James Grace Associates,A045696,31/08/2022,1427970,665.19,Agency Staff
North West Leicestershire District Council,31UH,Economic Development,Business Focus Group,BFG,NPS Peterborough Ltd,A044569,10/08/2022,1427108,720.00,Legal & Professional Services
North West Leicestershire District Council,31UH,Environmental Health,Environmental Health & Licensing,EEHL,Manchester Airport,A040092,10/08/2022,1427171,3193.37,internet and network expenditure
North West Leicestershire District Council,31UH,Environmental Health,Environmental Health & Licensing,EEHL,Institute of Licensing (Events) Limited,A033316,10/08/2022,1427238,980.00,Training Expenses
North West Leicestershire District Council,31UH,Environmental Health,Environmental Health & Licensing,EEHL,Tennals Pest Control,A045705,10/08/2022,1427240,4660.50,External Contractor Payments
North West Leicestershire District Council,31UH,Information Technology,ICT Services,ICT,dotdigital,A037038,10/08/2022,1427263,346.00,Admin Equipment - Maintenance
North West Leicestershire District Council,31UH,Information Technology,ICT Services,ICT,Freedom Communications (UK) Ltd,A032826,10/08/2022,1427264,508.43,Telephones
North West Leicestershire District Council,31UH,Street Management,Environment Transport,ENOT,Reflec Signs & Graphics Ltd,A025348,10/08/2022,1427369,520.00,General Materials
North West Leicestershire District Council,31UH,Street Management,Environment Transport,ENOT,PR Horticultural Services Limited,A046639,10/08/2022,1427372,327.96,Scheduled Servicing - Parts
North West Leicestershire District Council,31UH,Corporate Director,Human Resources,HR,4 imprint Direct Limited,A033612,10/08/2022,1427382,553.80,Door Access Systems
North West Leicestershire District Council,31UH,Corporate Director,Human Resources,HR,Art of Brilliance Ltd,A041233,10/08/2022,1427384,1500.00,Corporate Training
North West Leicestershire District Council,31UH,Street Management,Environment Waste Management,ENOWM,Straight Plc,A024906,24/08/2022,1426959,23599.80,General Materials
North West Leicestershire District Council,31UH,Housing,HRA Housing Management,HRAHM,James Andrews Recruitment Solutions,A036290,24/08/2022,1427259,1124.20,Agency Staff
North West Leicestershire District Council,31UH,Housing,HRA Housing Management,HRAHM,ECO Skip Hire Ltd,A041559,24/08/2022,1427379,370.00,Service Contracts
North West Leicestershire District Council,31UH,Housing,HRA Housing Management,HRAHM,James Andrews Recruitment Solutions,A036290,24/08/2022,1427466,1124.20,Agency Staff
North West Leicestershire District Council,31UH,Street Management,Environment Waste Management,ENOWM,Straight Plc,A024906,24/08/2022,1427485,1990.80,General Materials
North West Leicestershire District Council,31UH,Street Management,Environment Transport,ENOT,Groundsman Tools Ltd,A030744,24/08/2022,1427707,600.73,Operational Equipment
North West Leicestershire District Council,31UH,Planning & Development,Environment - Development Control,EDC,GHM Planning Limited,A034296,24/08/2022,1427718,5180.00,Agency Staff
North West Leicestershire District Council,31UH,Neighbourhoods & Communities,N & C Community Safety,NACCS,KisP,A047529,24/08/2022,1427721,360.00,PCC Early Intervention Expenditure
North West Leicestershire District Council,31UH,Housing,HRA Housing Management,HRAHM,Aareon UK Ltd,A045197,24/08/2022,1427723,870.00,Contract Payments (Other) Ext
North West Leicestershire District Council,31UH,Finance,Financial Planning,FINPLA,Vivid Resourcing,A044601,24/08/2022,1427733,6500.00,Agency Staff
North West Leicestershire District Council,31UH,Neighbourhoods & Communities,N & C Community Safety,NACCS,Amazon Payments UK Ltd,A036743,24/08/2022,1427734,314.91,PCC Early Intervention Expenditure
North West Leicestershire District Council,31UH,Housing Repairs,HRA Housing Repairs & Maintenance,HRAHRM,M3 Housing Limited,A032953,24/08/2022,1427736,10807.80,Contract Payments (Dws) Ext
North West Leicestershire District Council,31UH,Street Management,Environment Parks,ENOP,Midlands Parks Forum,A046139,24/08/2022,1427738,271.00,Operational Purchases
North West Leicestershire District Council,31UH,Housing,HRA Housing Management,HRAHM,Coalville Yellow Cabs,A041983,24/08/2022,1427749,260.00,Taxi services
North West Leicestershire District Council,31UH,Property Services,Property Facilities Management,PROPFM,Calbarrie Ltd,A021932,03/08/2022,1424734,1647.15,General Repairs
North West Leicestershire District Council,31UH,Property Services,Property Facilities Management,PROPFM,Calbarrie Ltd,A021932,03/08/2022,1425280,451.75,Service Contracts - Premises costs
North West Leicestershire District Council,31UH,Street Management,Environment Transport,ENOT,EPT Services,A039764,03/08/2022,1426328,748.48,Protective Clothing
North West Leicestershire District Council,31UH,Housing,HRA Housing Management,HRAHM,James Andrews Recruitment Solutions,A036290,03/08/2022,1426812,1124.20,Agency Staff
North West Leicestershire District Council,31UH,Housing,HRA Housing Management,HRAHM,James Andrews Recruitment Solutions,A036290,03/08/2022,1426813,692.39,Agency Staff
North West Leicestershire District Council,31UH,Housing,HRA Performance & Business Support,HRAPBS,Housemark Ltd,A033843,03/08/2022,1426889,725.00,Subscriptions
North West Leicestershire District Council,31UH,Street Management,Environment - Street Scene,ESS,Harborough District Council,A008631,03/08/2022,1426972,6338.59,Contaminated Land Officer
North West Leicestershire District Council,31UH,Housing Repairs,HRA Housing Repairs & Maintenance,HRAHRM,Alliance Contracting Solutions Ltd,A043325,03/08/2022,1427029,500.00,General repairs
North West Leicestershire District Council,31UH,Street Management,Environment Transport,ENOT,Lee Wells Autobodies Ltd,A031849,03/08/2022,1427040,1000.00,Vehicle Parts and Maintenance
North West Leicestershire District Council,31UH,Finance,Exchequer Services,EXCH,TMP Worldwide Ltd,A045319,03/08/2022,1427041,294.20,Advertising
North West Leicestershire District Council,31UH,Street Management,Environment - Street Scene,ESS,Spring Box Cleaning Ltd,A047448,03/08/2022,1427047,800.00,Contract Cleaning
North West Leicestershire District Council,31UH,Street Management,Environment - Street Scene,ESS,exi,A045557,17/08/2022,1427592,3675.00,Consultants Fees
North West Leicestershire District Council,31UH,Housing,HRA Performance & Business Support,HRAPBS,Readings Property Group Ltd,A045486,17/08/2022,1427602,750.00,Legal & Professional Services
North West Leicestershire District Council,31UH,Finance,Financial Planning,FINPLA,Embridge Consulting (UK) Ltd,A046643,17/08/2022,1427603,1395.00,Contract Payments (Other) Ext
North West Leicestershire District Council,31UH,Finance,Financial Planning,FINPLA,Embridge Consulting (UK) Ltd,A046643,17/08/2022,1427604,9390.00,Contract Payments (Other) Ext
North West Leicestershire District Council,31UH,Finance,Financial Planning,FINPLA,Embridge Consulting (UK) Ltd,A046643,17/08/2022,1427605,5400.00,Contract Payments (Other) Ext
North West Leicestershire District Council,31UH,Finance,Financial Planning,FINPLA,Embridge Consulting (UK) Ltd,A046643,17/08/2022,1427606,1044.00,Contract Payments (Other) Ext
North West Leicestershire District Council,31UH,Finance,Financial Planning,FINPLA,Embridge Consulting (UK) Ltd,A046643,17/08/2022,1427607,906.75,Contract Payments (Other) Ext
North West Leicestershire District Council,31UH,Finance,Financial Planning,FINPLA,Embridge Consulting (UK) Ltd,A046643,17/08/2022,1427608,1696.00,Contract Payments (Other) Ext
North West Leicestershire District Council,31UH,Finance,Financial Planning,FINPLA,Embridge Consulting (UK) Ltd,A046643,17/08/2022,1427609,10145.50,Contract Payments (Other) Ext
North West Leicestershire District Council,31UH,Finance,Financial Planning,FINPLA,Embridge Consulting (UK) Ltd,A046643,17/08/2022,1427610,22402.50,Contract Payments (Other) Ext
North West Leicestershire District Council,31UH,Housing,HRA Older Persons Service,HRAOPS,Tunstall Healthcare (UK) Limited,A001701,17/08/2022,1427621,1909.10,Alarm System Telephones
North West Leicestershire District Council,31UH,Street Management,Environment - Street Scene,ESS,KIWA CMT Testing,A045670,17/08/2022,1427672,1505.00,Air Quality Strategy
North West Leicestershire District Council,31UH,Housing Repairs,HRA Housing Repairs & Maintenance,HRAHRM,James Andrews Recruitment Solutions,A036290,31/08/2022,1427727,1101.86,Agency Staff
North West Leicestershire District Council,31UH,Housing Repairs,HRA Housing Repairs & Maintenance,HRAHRM,Castle Damp & Timber Specialists Limited,A046384,31/08/2022,1427892,800.00,Legal & Professional Services
North West Leicestershire District Council,31UH,Street Management,Environment - Street Scene,ESS,Coalville Cleaning Services,A003037,31/08/2022,1427898,334.80,Contract Cleaning
North West Leicestershire District Council,31UH,Corporate Director,Corporate Director,CORDI,PI Group,A047356,31/08/2022,1427899,19283.00,Furniture
North West Leicestershire District Council,31UH,Planning & Development,Environment - Development Control,EDC,Landscape Science Consultancy Ltd,A045654,31/08/2022,1427914,1198.00,Consultants Fees
North West Leicestershire District Council,31UH,Planning & Development,Environment - Development Control,EDC,Landscape Science Consultancy Ltd,A045654,31/08/2022,1427915,1447.00,Consultants Fees
North West Leicestershire District Council,31UH,Housing Repairs,HRA Housing Repairs & Maintenance,HRAHRM,Tersus Consultancy Limited,A046925,31/08/2022,1427958,854.85,Consultants Fees
North West Leicestershire District Council,31UH,Property Services,Property Facilities Management,PROPFM,ME Sports in the Community CIC,A047571,31/08/2022,1428010,500.00,Community Initiatives
North West Leicestershire District Council,31UH,Housing Repairs,HRA Housing Repairs & Maintenance,HRAHRM,CLC Contractors Ltd,A044213,31/08/2022,1428015,12854.40,Contract Payments (Dws) Ext
North West Leicestershire District Council,31UH,Planning & Development,Environment - Development Control,EDC,United Utilities Water Ltd,A047240,31/08/2022,1428026,473.90,River Mease Expenditure
North West Leicestershire District Council,31UH,Corporate Director,Corporate Director,CORDI,Stepnell Limited,A047274,31/08/2022,1428035,17289.75,Contract Payments (Other) Ext
North West Leicestershire District Council,31UH,Street Management,Environment - Street Scene,ESS,John Merison BMC Ltd,A001092,03/08/2022,1426767,252.67,General Repairs
North West Leicestershire District Council,31UH,Housing Repairs,HRA Housing Repairs & Maintenance,HRAHRM,Alliance Consulting Solutions Ltd,A043783,03/08/2022,1426785,1420.00,Legal & Professional Services
North West Leicestershire District Council,31UH,Housing Repairs,HRA Housing Repairs & Maintenance,HRAHRM,Alliance Consulting Solutions Ltd,A043783,03/08/2022,1426788,963.00,Contract Payments (Dws) Ext
North West Leicestershire District Council,31UH,Chief Exec,Chief Executive,CHEX,AECOM Limited,A037801,03/08/2022,1426793,18824.00,Consultants Fees
North West Leicestershire District Council,31UH,Street Management,Environment - Street Scene,ESS,Coalville Cleaning Services,A003037,03/08/2022,1426796,376.65,Contract Cleaning
North West Leicestershire District Council,31UH,Property Services,Property Commercial Lettings,PROPCL,Ksa Consulting Engineers Ltd,A008757,03/08/2022,1426824,300.00,General Repairs
North West Leicestershire District Council,31UH,Housing Repairs,HRA Housing Repairs & Maintenance,HRAHRM,Alliance Consulting Solutions Ltd,A043783,03/08/2022,1426851,2047.00,Legal & Professional Services
North West Leicestershire District Council,31UH,Housing Repairs,HRA Housing Repairs & Maintenance,HRAHRM,Anthony Hope MCIAT,A047394,03/08/2022,1426852,5195.00,Contract Payments (Dws) Ext
North West Leicestershire District Council,31UH,Street Management,Environment Transport,ENOT,Michelin Tyre Plc,A046127,03/08/2022,1426869,494.84,Vehicle Parts and Maintenance
North West Leicestershire District Council,31UH,Street Management,Environment Transport,ENOT,Michelin Tyre Plc,A046127,03/08/2022,1426870,1495.20,Vehicle Parts and Maintenance
North West Leicestershire District Council,31UH,Street Management,Environment Transport,ENOT,J F Lloyd & Sons,A000991,03/08/2022,1426873,300.00,Hire Of Operational Equipment
North West Leicestershire District Council,31UH,Chief Exec,Chief Executive,CHEX,Pollards Fruit & Veg,A045637,03/08/2022,1426885,320.00,Fruit Basket Delivery
North West Leicestershire District Council,31UH,Street Management,Environment Transport,ENOT,HGV Direct Ltd,A046956,03/08/2022,1426894,282.31,Vehicle Parts and Maintenance
North West Leicestershire District Council,31UH,Street Management,Environment Transport,ENOT,HGV Direct Ltd,A046956,03/08/2022,1426895,356.50,Vehicle Parts and Maintenance
North West Leicestershire District Council,31UH,Information Technology,ICT Services,ICT,Nominet UK,A046776,03/08/2022,1426899,765.94,Admin Equipment - Maintenance
North West Leicestershire District Council,31UH,Street Management,Environment Transport,ENOT,Bucher Municipal Limited,A039355,03/08/2022,1426906,1002.24,Repairs - Parts
North West Leicestershire District Council,31UH,Street Management,Environment Transport,ENOT,Bucher Municipal Limited,A039355,03/08/2022,1426925,355.00,Operational Purchases
North West Leicestershire District Council,31UH,Housing Repairs,HRA Housing Repairs & Maintenance,HRAHRM,Travis Perkins Trading Co Ltd,A001693,03/08/2022,1426931,1610.65,General Materials
North West Leicestershire District Council,31UH,Housing Repairs,HRA Housing Repairs & Maintenance,HRAHRM,Travis Perkins Trading Co Ltd,A001693,03/08/2022,1426932,1336.00,General Materials
North West Leicestershire District Council,31UH,Housing Repairs,HRA Housing Repairs & Maintenance,HRAHRM,Travis Perkins Trading Co Ltd,A001693,03/08/2022,1426933,138191.02,General Materials
North West Leicestershire District Council,31UH,Housing Repairs,HRA Housing Repairs & Maintenance,HRAHRM,Travis Perkins Trading Co Ltd,A001693,03/08/2022,1426934,3764.04,General Materials
North West Leicestershire District Council,31UH,Housing Repairs,HRA Housing Repairs & Maintenance,HRAHRM,Travis Perkins Trading Co Ltd,A001693,03/08/2022,1426935,951.00,General Materials
North West Leicestershire District Council,31UH,Housing Repairs,HRA Housing Repairs & Maintenance,HRAHRM,Travis Perkins Trading Co Ltd,A001693,03/08/2022,1426936,1897.65,General Materials
North West Leicestershire District Council,31UH,Housing Repairs,HRA Housing Repairs & Maintenance,HRAHRM,Travis Perkins Trading Co Ltd,A001693,03/08/2022,1426937,128588.64,General Materials
North West Leicestershire District Council,31UH,Housing Repairs,HRA Housing Repairs & Maintenance,HRAHRM,Travis Perkins Trading Co Ltd,A001693,03/08/2022,1426939,3606.34,General Materials
North West Leicestershire District Council,31UH,Housing Repairs,HRA Housing Repairs & Maintenance,HRAHRM,Travis Perkins Trading Co Ltd,A001693,03/08/2022,1426940,1302.00,General Materials
North West Leicestershire District Council,31UH,Housing Repairs,HRA Housing Repairs & Maintenance,HRAHRM,Travis Perkins Trading Co Ltd,A001693,03/08/2022,1426941,1862.50,General Materials
North West Leicestershire District Council,31UH,Housing Repairs,HRA Housing Repairs & Maintenance,HRAHRM,Travis Perkins Trading Co Ltd,A001693,03/08/2022,1426942,138681.35,General Materials
North West Leicestershire District Council,31UH,Housing Repairs,HRA Housing Repairs & Maintenance,HRAHRM,Travis Perkins Trading Co Ltd,A001693,03/08/2022,1426943,4228.44,General Materials
North West Leicestershire District Council,31UH,Housing Repairs,HRA Housing Repairs & Maintenance,HRAHRM,Anthony Hope MCIAT,A047394,03/08/2022,1426968,4295.00,Contract Payments (Dws) Ext
North West Leicestershire District Council,31UH,Housing Repairs,HRA Housing Repairs & Maintenance,HRAHRM,Anthony Hope MCIAT,A047394,03/08/2022,1426969,4295.00,Contract Payments (Dws) Ext
North West Leicestershire District Council,31UH,Housing Repairs,HRA Housing Repairs & Maintenance,HRAHRM,Anthony Hope MCIAT,A047394,03/08/2022,1426970,4295.00,Contract Payments (Dws) Ext
North West Leicestershire District Council,31UH,Housing Repairs,HRA Housing Repairs & Maintenance,HRAHRM,Cresswell Property Surveys,A022373,03/08/2022,1426971,1910.00,Legal & Professional Services
North West Leicestershire District Council,31UH,Economic Development,Business Focus Group,BFG,Perfect Circle JV Ltd,A046694,03/08/2022,1426999,23698.50,Legal & Professional Services
North West Leicestershire District Council,31UH,Economic Development,Business Focus Group,BFG,BSP Consulting,A043552,03/08/2022,1427001,3610.00,Legal & Professional Services
North West Leicestershire District Council,31UH,Economic Development,Business Focus Group,BFG,BSP Consulting,A043552,03/08/2022,1427002,920.00,Legal & Professional Services
North West Leicestershire District Council,31UH,Housing Repairs,HRA Housing Repairs & Maintenance,HRAHRM,Michael Dyson Associates Ltd,A028431,10/08/2022,1426006,1371.00,Legal & Professional Services
North West Leicestershire District Council,31UH,Housing,HRA Older Persons Service,HRAOPS,Tunstall Healthcare (UK) Limited,A001701,10/08/2022,1426368,3465.00,Alarm System Telephones
North West Leicestershire District Council,31UH,Housing Repairs,HRA Housing Repairs & Maintenance,HRAHRM,James Grace Associates,A045696,10/08/2022,1426904,665.19,Agency Staff
North West Leicestershire District Council,31UH,Housing Repairs,HRA Housing Repairs & Maintenance,HRAHRM,James Grace Associates,A045696,10/08/2022,1426905,665.19,Agency Staff
North West Leicestershire District Council,31UH,Property Services,Property Commercial Lettings,PROPCL,John Merison BMC Ltd,A001092,10/08/2022,1426930,357.83,General Repairs
North West Leicestershire District Council,31UH,Housing,HRA Older Persons Service,HRAOPS,Tunstall Healthcare (UK) Limited,A001701,10/08/2022,1426952,1498.80,Alarm System Telephones
North West Leicestershire District Council,31UH,Housing Repairs,HRA Housing Repairs & Maintenance,HRAHRM,Michael Dyson Associates Ltd,A028431,10/08/2022,1427042,457.00,Legal & Professional Services
North West Leicestershire District Council,31UH,Property Services,Property Facilities Management,PROPFM,AES Sustainability Consultants Limited,A047281,10/08/2022,1427389,12000.00,Legal & Professional Services
North West Leicestershire District Council,31UH,Street Management,Environment - Street Scene,ESS,Pod Point Ltd,A045298,10/08/2022,1427403,35449.29,Contract Payments (Other) Ext
North West Leicestershire District Council,31UH,Housing Repairs,HRA Housing Repairs & Maintenance,HRAHRM,James Grace Associates,A045696,10/08/2022,1427409,665.19,Agency Staff
North West Leicestershire District Council,31UH,Street Management,Environment Transport,ENOT,Enterprise Rent-A-Car UK Ltd,A046419,24/08/2022,1427841,761.60,Hire Of Transport
North West Leicestershire District Council,31UH,Street Management,Environment Transport,ENOT,Trade Price Windscreens Ltd,A040486,24/08/2022,1427846,315.00,Non Insurance Damage
North West Leicestershire District Council,31UH,Street Management,Environment Transport,ENOT,S & B Tyres Limited,A034071,24/08/2022,1427847,880.00,Vehicle Parts and Maintenance
North West Leicestershire District Council,31UH,Street Management,Environment Transport,ENOT,Russells (kirbymoorside) Ltd,A047582,24/08/2022,1427851,979.46,Vehicle Parts and Maintenance
North West Leicestershire District Council,31UH,Economic Development,Business Focus Group,BFG,Readings Property Group Ltd,A045486,24/08/2022,1427865,2250.00,Legal & Professional Services
North West Leicestershire District Council,31UH,Housing Repairs,HRA Housing Repairs & Maintenance,HRAHRM,Ksa Consulting Engineers Ltd,A008757,24/08/2022,1427867,350.00,Legal & Professional Services
North West Leicestershire District Council,31UH,Housing Repairs,HRA Housing Repairs & Maintenance,HRAHRM,Ksa Consulting Engineers Ltd,A008757,24/08/2022,1427868,350.00,Legal & Professional Services
North West Leicestershire District Council,31UH,Neighbourhoods & Communities,N & C Neighbourhoods,NACN,Ashby Life Limited,A032236,24/08/2022,1427869,470.25,Free Tree Scheme
North West Leicestershire District Council,31UH,Street Management,Environment Transport,ENOT,Dennis Eagle Limited,A000522,24/08/2022,1427878,2667.24,Vehicle Parts and Maintenance
North West Leicestershire District Council,31UH,Street Management,Environment Parks,ENOP,George Browns Ltd,A044771,03/08/2022,1424335,31595.00,Items To Be Leased
North West Leicestershire District Council,31UH,Property Services,Property Facilities Management,PROPFM,Calbarrie Ltd,A021932,03/08/2022,1424936,360.00,General Repairs
North West Leicestershire District Council,31UH,Property Services,Property Facilities Management,PROPFM,iG Surveys,A046433,03/08/2022,1425493,395.00,Legal & Professional Services
North West Leicestershire District Council,31UH,Property Services,Property Facilities Management,PROPFM,Calbarrie Ltd,A021932,03/08/2022,1425843,1194.00,General Repairs
North West Leicestershire District Council,31UH,Street Management,Environment - Street Scene,ESS,WK & B Limited,A047501,03/08/2022,1426519,3628.00,General Repairs
North West Leicestershire District Council,31UH,Neighbourhoods & Communities,N & C Community Safety,NACCS,John Merison BMC Ltd,A001092,03/08/2022,1426764,445.28,Cctv Control Room
North West Leicestershire District Council,31UH,Planning & Development,Environment - Development Control,EDC,The Oyster Partnership Ltd,A032796,03/08/2022,1426766,2164.50,External Legal Fees & Advice
North West Leicestershire District Council,31UH,Street Management,Environment Transport,ENOT,Trade Price Windscreens Ltd,A040486,03/08/2022,1426768,410.00,Vehicle Parts and Maintenance
North West Leicestershire District Council,31UH,Planning & Development,Environment - Development Control,EDC,Jon Etchells Consulting Ltd,A029305,03/08/2022,1426776,4613.20,External Legal Fees & Advice
North West Leicestershire District Council,31UH,Street Management,Environment - Street Scene,ESS,AA Builders Leicester Ltd,A046989,03/08/2022,1426784,2150.00,General Repairs
North West Leicestershire District Council,31UH,Street Management,Environment - Street Scene,ESS,AA Builders Leicester Ltd,A046989,03/08/2022,1426786,2150.00,General Repairs
North West Leicestershire District Council,31UH,Economic Development,Business Focus Group,BFG,Simon Foote Architects,A045677,03/08/2022,1426790,266.20,Legal & Professional Services
North West Leicestershire District Council,31UH,Economic Development,Business Focus Group,BFG,Simon Foote Architects,A045677,03/08/2022,1426791,3287.50,Legal & Professional Services
North West Leicestershire District Council,31UH,Street Management,Environment Transport,ENOT,Terberg Matec UK Limited,A001647,03/08/2022,1426794,956.44,Repairs - Parts
North West Leicestershire District Council,31UH,Corporate Director,Human Resources,HR,Starfish,A047178,03/08/2022,1426795,13862.00,Agency Staff
North West Leicestershire District Council,31UH,Property Services,Property Facilities Management,PROPFM,Gleam Team Services Limited,A000129,03/08/2022,1426798,350.00,Contract Cleaning
North West Leicestershire District Council,31UH,Corporate Director,Human Resources,HR,TMP Worldwide Ltd,A045319,03/08/2022,1426806,1685.00,Employee Advertising
North West Leicestershire District Council,31UH,Corporate Director,Human Resources,HR,TMP Worldwide Ltd,A045319,03/08/2022,1426807,1025.00,Publicity & Promotion
North West Leicestershire District Council,31UH,Street Management,Environment Transport,ENOT,Selby's Garage (Woodhouse) Ltd,A044011,03/08/2022,1426809,772.23,Hire Of Operational Equipment
North West Leicestershire District Council,31UH,Information Technology,ICT Services,ICT,ACS Systems (UK) Ltd T/a ACS Office Solutions,A043447,03/08/2022,1426811,717.50,Computing
North West Leicestershire District Council,31UH,Street Management,Environment Parks,ENOP,Westbury Industrial Supplies Limited,A009933,03/08/2022,1426827,540.88,Protective Clothing
North West Leicestershire District Council,31UH,Housing Repairs,HRA Housing Repairs & Maintenance,HRAHRM,Dodd Group (Midlands) Limited,A036692,03/08/2022,1426854,2406.84,Contract Payments (Dws) Ext
North West Leicestershire District Council,31UH,Housing Repairs,HRA Housing Repairs & Maintenance,HRAHRM,Dodd Group (Midlands) Limited,A036692,03/08/2022,1426855,9744.17,Contract Payments (Dws) Ext
North West Leicestershire District Council,31UH,Housing Repairs,HRA Housing Repairs & Maintenance,HRAHRM,Dodd Group (Midlands) Limited,A036692,03/08/2022,1426856,4535.24,Contract Payments (Dws) Ext
North West Leicestershire District Council,31UH,Housing Repairs,HRA Housing Repairs & Maintenance,HRAHRM,Dodd Group (Midlands) Limited,A036692,03/08/2022,1426857,15040.73,Contract Payments (Dws) Ext
North West Leicestershire District Council,31UH,Housing Repairs,HRA Housing Repairs & Maintenance,HRAHRM,Dodd Group (Midlands) Limited,A036692,03/08/2022,1426858,4593.32,Contract Payments (Dws) Ext
North West Leicestershire District Council,31UH,Information Technology,ICT Services,ICT,Freedom Communications (UK) Ltd,A032826,03/08/2022,1426862,1771.45,Admin Equipment - Maintenance
North West Leicestershire District Council,31UH,Chief Exec,Chief Executive,CHEX,Sable Leigh Consultancy Ltd T/A SLC Rail,A042727,03/08/2022,1426863,1937.50,Consultants Fees
North West Leicestershire District Council,31UH,Chief Exec,Chief Executive,CHEX,exi,A045557,03/08/2022,1426864,4225.00,Advertising
North West Leicestershire District Council,31UH,Chief Exec,Chief Executive,CHEX,exi,A045557,03/08/2022,1426865,3052.00,External Lighting Units
North West Leicestershire District Council,31UH,Street Management,Environment Transport,ENOT,Gemco Equipment Ltd,A024379,03/08/2022,1426871,348.40,Operational Equipment - Rep & Maint
North West Leicestershire District Council,31UH,Street Management,Environment Transport,ENOT,Enterprise Rent-A-Car UK Ltd,A046419,03/08/2022,1426875,761.60,Hire Of Transport
North West Leicestershire District Council,31UH,Street Management,Environment Transport,ENOT,HGV Direct Ltd,A046956,03/08/2022,1426877,297.50,Vehicle Parts and Maintenance
North West Leicestershire District Council,31UH,Street Management,Environment Transport,ENOT,Dennis Eagle Limited,A000522,03/08/2022,1426887,350.00,Vehicle Parts and Maintenance
North West Leicestershire District Council,31UH,Finance,Financial Planning,FINPLA,Proactis Ltd,A043852,03/08/2022,1426888,4120.00,Computing
North West Leicestershire District Council,31UH,Street Management,Environment Transport,ENOT,Mertrux Ltd,A035291,03/08/2022,1426892,343.00,Vehicle Parts and Maintenance
North West Leicestershire District Council,31UH,Housing Repairs,HRA Housing Repairs & Maintenance,HRAHRM,Western Power Distribution,A038499,03/08/2022,1426954,1535.29,Contract Payments (Other) Ext
North West Leicestershire District Council,31UH,Leisure & Culture,Sport & Physical Activity,SPA,Chameleon Pro Audio T/A Lux Technical Ltd,A027592,17/08/2022,1427157,599.00,Sports and Health Awards 2022
North West Leicestershire District Council,31UH,Chief Exec,Chief Executive,CHEX,White Young Green Environmental Ltd,A030438,17/08/2022,1427425,11500.00,PRE - Feasability Work
North West Leicestershire District Council,31UH,Planning & Development,Environment - Development Control,EDC,TMP Worldwide Ltd,A045319,17/08/2022,1427427,391.44,Advertising
North West Leicestershire District Council,31UH,Property Services,Property Facilities Management,PROPFM,Regarde Security Ltd,A013049,17/08/2022,1427432,300.70,Security Services
North West Leicestershire District Council,31UH,Planning & Development,Environment - Development Control,EDC,TMP Worldwide Ltd,A045319,17/08/2022,1427436,289.60,Advertising
North West Leicestershire District Council,31UH,Planning & Development,Environment - Development Control,EDC,TMP Worldwide Ltd,A045319,17/08/2022,1427440,289.60,Advertising
North West Leicestershire District Council,31UH,Planning & Development,Environment - Development Control,EDC,Ilex Tree Services,A046556,17/08/2022,1427442,1400.00,External Legal Fees & Advice
North West Leicestershire District Council,31UH,Information Technology,ICT Services,ICT,Six Degrees Technology Group Ltd,A044205,17/08/2022,1427450,21340.92,Admin Equipment - Maintenance
North West Leicestershire District Council,31UH,Street Management,Environment - Street Scene,ESS,Olaf Environmental Health Consultancy Ltd,A047542,17/08/2022,1427452,1980.00,Consultants Fees
North West Leicestershire District Council,31UH,Information Technology,ICT Services,ICT,Idox Software Ltd,A034157,17/08/2022,1427455,1316.72,Software Licences
North West Leicestershire District Council,31UH,Legal & Democratic,Legal Services,LDLS,HB Editorial Services Ltd,A044792,17/08/2022,1427457,995.00,Employee Advertising
North West Leicestershire District Council,31UH,Street Management,Environment Transport,ENOT,Pentagon Parts Distribution,A046128,17/08/2022,1427462,396.26,Vehicle Parts and Maintenance
North West Leicestershire District Council,31UH,Planning & Development,Environment - Development Control,EDC,RAS Town Planning Services,A045293,17/08/2022,1427468,3705.00,External Legal Fees & Advice
North West Leicestershire District Council,31UH,Corporate Director,Human Resources,HR,Wider Plan Ltd,A043948,17/08/2022,1427470,833.23,Medical Fees
North West Leicestershire District Council,31UH,Corporate Director,Human Resources,HR,Wider Plan Ltd,A043948,17/08/2022,1427473,600.00,Medical Fees
North West Leicestershire District Council,31UH,Economic Development,Business Focus Group,BFG,Leicestershire County Council,A000950,17/08/2022,1427474,675.00,Premises Rents
North West Leicestershire District Council,31UH,Street Management,Environment Transport,ENOT,Boc Limited,A000193,17/08/2022,1427487,439.32,Gas
North West Leicestershire District Council,31UH,Street Management,Environment Transport,ENOT,John Merison BMC Ltd,A001092,17/08/2022,1427492,260.00,General Repairs
North West Leicestershire District Council,31UH,Street Management,Environment Transport,ENOT,J F Lloyd & Sons,A000991,17/08/2022,1427493,300.00,Hire Of Operational Equipment
North West Leicestershire District Council,31UH,Chief Exec,Chief Executive,CHEX,Iceni Projects Limited,A046873,24/08/2022,1427740,36810.00,Consultants Fees
North West Leicestershire District Council,31UH,Housing Repairs,HRA Housing Repairs & Maintenance,HRAHRM,Travis Perkins Trading Co Ltd,A001693,24/08/2022,1427826,151754.08,General Materials
North West Leicestershire District Council,31UH,Housing Repairs,HRA Housing Repairs & Maintenance,HRAHRM,Travis Perkins Trading Co Ltd,A001693,24/08/2022,1427827,2687.00,General Materials
North West Leicestershire District Council,31UH,Housing Repairs,HRA Housing Repairs & Maintenance,HRAHRM,Travis Perkins Trading Co Ltd,A001693,24/08/2022,1427828,1670.00,General Materials
North West Leicestershire District Council,31UH,Housing Repairs,HRA Housing Repairs & Maintenance,HRAHRM,Travis Perkins Trading Co Ltd,A001693,24/08/2022,1427829,3423.77,General Materials
North West Leicestershire District Council,31UH,Housing Repairs,HRA Housing Repairs & Maintenance,HRAHRM,Travis Perkins Trading Co Ltd,A001693,24/08/2022,1427830,109693.84,General Materials
North West Leicestershire District Council,31UH,Housing Repairs,HRA Housing Repairs & Maintenance,HRAHRM,Travis Perkins Trading Co Ltd,A001693,24/08/2022,1427831,2573.24,General Materials
North West Leicestershire District Council,31UH,Housing Repairs,HRA Housing Repairs & Maintenance,HRAHRM,Travis Perkins Trading Co Ltd,A001693,24/08/2022,1427832,1925.92,General Materials
North West Leicestershire District Council,31UH,Housing Repairs,HRA Housing Repairs & Maintenance,HRAHRM,Travis Perkins Trading Co Ltd,A001693,24/08/2022,1427833,1670.00,General Materials
North West Leicestershire District Council,31UH,Street Management,Environment Transport,ENOT,J F Lloyd & Sons,A000991,24/08/2022,1427834,300.00,Hire Of Operational Equipment
North West Leicestershire District Council,31UH,Street Management,Environment Transport,ENOT,J F Lloyd & Sons,A000991,24/08/2022,1427835,300.00,Hire Of Operational Equipment
North West Leicestershire District Council,31UH,Street Management,Environment Transport,ENOT,Scarab Sweepers Limited,A001445,24/08/2022,1427850,515.40,Repairs - Parts
North West Leicestershire District Council,31UH,Street Management,Environment - Street Scene,ESS,Key 4 Ads Ltd,A045050,24/08/2022,1427866,930.25,Advertising
North West Leicestershire District Council,31UH,Street Management,Environment Transport,ENOT,HGV Direct Ltd,A046956,24/08/2022,1427871,266.01,Vehicle Parts and Maintenance
North West Leicestershire District Council,31UH,Street Management,Environment Transport,ENOT,HGV Direct Ltd,A046956,24/08/2022,1427873,1059.94,Vehicle Parts and Maintenance
North West Leicestershire District Council,31UH,Street Management,Environment Transport,ENOT,HGV Direct Ltd,A046956,24/08/2022,1427875,259.10,Vehicle Parts and Maintenance
North West Leicestershire District Council,31UH,Street Management,Environment Transport,ENOT,Watling JCB Ltd,A032114,24/08/2022,1427879,589.01,Vehicle Parts and Maintenance
North West Leicestershire District Council,31UH,Street Management,Environment Transport,ENOT,Watling JCB Ltd,A032114,24/08/2022,1427880,811.00,Vehicle Parts and Maintenance
North West Leicestershire District Council,31UH,Street Management,Environment Transport,ENOT,Scarab Sweepers Limited,A001445,24/08/2022,1427881,310.12,Repairs - Parts
North West Leicestershire District Council,31UH,Street Management,Environment Transport,ENOT,Scarab Sweepers Limited,A001445,24/08/2022,1427883,722.55,Repairs - Parts
